{"text_format":"1","workbook":"xlsx","n_sheets":28,"sheets":["Start","PodsumowanieIX","IX poziom","VIII poziom","VII poziom","V poziom","IV poziom","PodsumowanieVIII","PodsumowanieVII","VII poziomW","VI poziomW","V poziomW","IV poziomW","III poziomW","PodsumowanieV","Arkusz7","VI poziom","PodsumowanieVI","VIII poziomW","PodsumowanieIV","PodsumowanieVIIW","PodsumowanieVIIIW","PodsumowanieVIW","PodsumowanieVW","PodsumowanieIVW","PodsumowanieIIIW","III poziom","PodsumowanieIII"],"not_rendered":{"charts":13,"images":0,"macros":1,"external_links":0,"defined_names":41,"comments":0,"pivot_tables":0},"unopened":[],"bounds":{"document_bytes":16777216,"sheet_cells":100000,"rows_first":2000,"rows_last":500,"rows_between":2000,"halvings":0,"cell_chars":16384,"cell_head_chars":4096},"cells_cut":0,"cells_raw":0,"read":"whole","date_system":"1900"}

{"sheet":"Start","index":0,"n_rows":0,"n_cols":0,"rows_kept":0,"cut":false,"hidden":false,"merged":[]}

{"sheet":"PodsumowanieIX","index":1,"n_rows":371,"n_cols":8,"rows_kept":371,"cut":false,"hidden":true,"merged":[[2,5,2,6],[2,7,2,17]]}
[]
[]
[null,null,null,null,null,"Wynik testu:",null,"P90 >= 0,75*Limit: Brak możliwości zmniejszenia częstotliwości monitorowania emisji"]
[]
[null,"Lp.","Wynik pomiaru","P(90)","0,75*Limit"]
[null,1,500,{"$f":"Arkusz7!$L$16","v":160},{"$f":"Arkusz7!$L$17","v":7.500000000000001E-6}]
[null,2,100,{"$f":"Arkusz7!$L$16","v":160},{"$f":"Arkusz7!$L$17","v":7.500000000000001E-6}]
[null,3,30,{"$f":"Arkusz7!$L$16","v":160},{"$f":"Arkusz7!$L$17","v":7.500000000000001E-6}]
[null,4,25,{"$f":"Arkusz7!$L$16","v":160},{"$f":"Arkusz7!$L$17","v":7.500000000000001E-6}]
[null,5,30,{"$f":"Arkusz7!$L$16","v":160},{"$f":"Arkusz7!$L$17","v":7.500000000000001E-6}]
[null,6,74,{"$f":"Arkusz7!$L$16","v":160},{"$f":"Arkusz7!$L$17","v":7.500000000000001E-6}]
[null,7,1000,{"$f":"Arkusz7!$L$16","v":160},{"$f":"Arkusz7!$L$17","v":7.500000000000001E-6}]
[null,8,55,{"$f":"Arkusz7!$L$16","v":160},{"$f":"Arkusz7!$L$17","v":7.500000000000001E-6}]
[null,9,115,{"$f":"Arkusz7!$L$16","v":160},{"$f":"Arkusz7!$L$17","v":7.500000000000001E-6}]
[null,10,135,{"$f":"Arkusz7!$L$16","v":160},{"$f":"Arkusz7!$L$17","v":7.500000000000001E-6}]
[null,11,120,{"$f":"Arkusz7!$L$16","v":160},{"$f":"Arkusz7!$L$17","v":7.500000000000001E-6}]
[null,12,160,{"$f":"Arkusz7!$L$16","v":160},{"$f":"Arkusz7!$L$17","v":7.500000000000001E-6}]
[null,13,105,{"$f":"Arkusz7!$L$16","v":160},{"$f":"Arkusz7!$L$17","v":7.500000000000001E-6}]
[null,14,115,{"$f":"Arkusz7!$L$16","v":160},{"$f":"Arkusz7!$L$17","v":7.500000000000001E-6}]
[null,15,130,{"$f":"Arkusz7!$L$16","v":160},{"$f":"Arkusz7!$L$17","v":7.500000000000001E-6}]
[null,16,140,{"$f":"Arkusz7!$L$16","v":160},{"$f":"Arkusz7!$L$17","v":7.500000000000001E-6}]
[null,17,150,{"$f":"Arkusz7!$L$16","v":160},{"$f":"Arkusz7!$L$17","v":7.500000000000001E-6}]
[null,18,160,{"$f":"Arkusz7!$L$16","v":160},{"$f":"Arkusz7!$L$17","v":7.500000000000001E-6}]
[null,19,105,{"$f":"Arkusz7!$L$16","v":160},{"$f":"Arkusz7!$L$17","v":7.500000000000001E-6}]
[null,20,115,{"$f":"Arkusz7!$L$16","v":160},{"$f":"Arkusz7!$L$17","v":7.500000000000001E-6}]
[null,21,125,{"$f":"Arkusz7!$L$16","v":160},{"$f":"Arkusz7!$L$17","v":7.500000000000001E-6}]
[null,22,135,{"$f":"Arkusz7!$L$16","v":160},{"$f":"Arkusz7!$L$17","v":7.500000000000001E-6}]
[null,23,100,{"$f":"Arkusz7!$L$16","v":160},{"$f":"Arkusz7!$L$17","v":7.500000000000001E-6}]
[null,24,150,{"$f":"Arkusz7!$L$16","v":160},{"$f":"Arkusz7!$L$17","v":7.500000000000001E-6}]
[null,25,160,{"$f":"Arkusz7!$L$16","v":160},{"$f":"Arkusz7!$L$17","v":7.500000000000001E-6}]
[null,26,105,{"$f":"Arkusz7!$L$16","v":160},{"$f":"Arkusz7!$L$17","v":7.500000000000001E-6}]
[null,27,115,{"$f":"Arkusz7!$L$16","v":160},{"$f":"Arkusz7!$L$17","v":7.500000000000001E-6}]
[null,28,125,{"$f":"Arkusz7!$L$16","v":160},{"$f":"Arkusz7!$L$17","v":7.500000000000001E-6}]
[null,29,135,{"$f":"Arkusz7!$L$16","v":160},{"$f":"Arkusz7!$L$17","v":7.500000000000001E-6}]
[null,30,100,{"$f":"Arkusz7!$L$16","v":160},{"$f":"Arkusz7!$L$17","v":7.500000000000001E-6}]
[null,31,110,{"$f":"Arkusz7!$L$16","v":160},{"$f":"Arkusz7!$L$17","v":7.500000000000001E-6}]
[null,32,120,{"$f":"Arkusz7!$L$16","v":160},{"$f":"Arkusz7!$L$17","v":7.500000000000001E-6}]
[null,33,130,{"$f":"Arkusz7!$L$16","v":160},{"$f":"Arkusz7!$L$17","v":7.500000000000001E-6}]
[null,34,140,{"$f":"Arkusz7!$L$16","v":160},{"$f":"Arkusz7!$L$17","v":7.500000000000001E-6}]
[null,35,150,{"$f":"Arkusz7!$L$16","v":160},{"$f":"Arkusz7!$L$17","v":7.500000000000001E-6}]
[null,36,160,{"$f":"Arkusz7!$L$16","v":160},{"$f":"Arkusz7!$L$17","v":7.500000000000001E-6}]
[null,37,105,{"$f":"Arkusz7!$L$16","v":160},{"$f":"Arkusz7!$L$17","v":7.500000000000001E-6}]
[null,38,115,{"$f":"Arkusz7!$L$16","v":160},{"$f":"Arkusz7!$L$17","v":7.500000000000001E-6}]
[null,39,125,{"$f":"Arkusz7!$L$16","v":160},{"$f":"Arkusz7!$L$17","v":7.500000000000001E-6}]
[null,40,135,{"$f":"Arkusz7!$L$16","v":160},{"$f":"Arkusz7!$L$17","v":7.500000000000001E-6}]
[null,41,100,{"$f":"Arkusz7!$L$16","v":160},{"$f":"Arkusz7!$L$17","v":7.500000000000001E-6}]
[null,42,110,{"$f":"Arkusz7!$L$16","v":160},{"$f":"Arkusz7!$L$17","v":7.500000000000001E-6}]
[null,43,120,{"$f":"Arkusz7!$L$16","v":160},{"$f":"Arkusz7!$L$17","v":7.500000000000001E-6}]
[null,44,130,{"$f":"Arkusz7!$L$16","v":160},{"$f":"Arkusz7!$L$17","v":7.500000000000001E-6}]
[null,45,140,{"$f":"Arkusz7!$L$16","v":160},{"$f":"Arkusz7!$L$17","v":7.500000000000001E-6}]
[null,46,150,{"$f":"Arkusz7!$L$16","v":160},{"$f":"Arkusz7!$L$17","v":7.500000000000001E-6}]
[null,47,160,{"$f":"Arkusz7!$L$16","v":160},{"$f":"Arkusz7!$L$17","v":7.500000000000001E-6}]
[null,48,105,{"$f":"Arkusz7!$L$16","v":160},{"$f":"Arkusz7!$L$17","v":7.500000000000001E-6}]
[null,49,115,{"$f":"Arkusz7!$L$16","v":160},{"$f":"Arkusz7!$L$17","v":7.500000000000001E-6}]
[null,50,125,{"$f":"Arkusz7!$L$16","v":160},{"$f":"Arkusz7!$L$17","v":7.500000000000001E-6}]
[null,51,135,{"$f":"Arkusz7!$L$16","v":160},{"$f":"Arkusz7!$L$17","v":7.500000000000001E-6}]
[null,52,100,{"$f":"Arkusz7!$L$16","v":160},{"$f":"Arkusz7!$L$17","v":7.500000000000001E-6}]
[null,53,110,{"$f":"Arkusz7!$L$16","v":160},{"$f":"Arkusz7!$L$17","v":7.500000000000001E-6}]
[null,54,120,{"$f":"Arkusz7!$L$16","v":160},{"$f":"Arkusz7!$L$17","v":7.500000000000001E-6}]
[null,55,130,{"$f":"Arkusz7!$L$16","v":160},{"$f":"Arkusz7!$L$17","v":7.500000000000001E-6}]
[null,56,140,{"$f":"Arkusz7!$L$16","v":160},{"$f":"Arkusz7!$L$17","v":7.500000000000001E-6}]
[null,57,150,{"$f":"Arkusz7!$L$16","v":160},{"$f":"Arkusz7!$L$17","v":7.500000000000001E-6}]
[null,58,160,{"$f":"Arkusz7!$L$16","v":160},{"$f":"Arkusz7!$L$17","v":7.500000000000001E-6}]
[null,59,105,{"$f":"Arkusz7!$L$16","v":160},{"$f":"Arkusz7!$L$17","v":7.500000000000001E-6}]
[null,60,115,{"$f":"Arkusz7!$L$16","v":160},{"$f":"Arkusz7!$L$17","v":7.500000000000001E-6}]
[null,61,125,{"$f":"Arkusz7!$L$16","v":160},{"$f":"Arkusz7!$L$17","v":7.500000000000001E-6}]
[null,62,135,{"$f":"Arkusz7!$L$16","v":160},{"$f":"Arkusz7!$L$17","v":7.500000000000001E-6}]
[null,63,100,{"$f":"Arkusz7!$L$16","v":160},{"$f":"Arkusz7!$L$17","v":7.500000000000001E-6}]
[null,64,110,{"$f":"Arkusz7!$L$16","v":160},{"$f":"Arkusz7!$L$17","v":7.500000000000001E-6}]
[null,65,120,{"$f":"Arkusz7!$L$16","v":160},{"$f":"Arkusz7!$L$17","v":7.500000000000001E-6}]
[null,66,130,{"$f":"Arkusz7!$L$16","v":160},{"$f":"Arkusz7!$L$17","v":7.500000000000001E-6}]
[null,67,140,{"$f":"Arkusz7!$L$16","v":160},{"$f":"Arkusz7!$L$17","v":7.500000000000001E-6}]
[null,68,150,{"$f":"Arkusz7!$L$16","v":160},{"$f":"Arkusz7!$L$17","v":7.500000000000001E-6}]
[null,69,160,{"$f":"Arkusz7!$L$16","v":160},{"$f":"Arkusz7!$L$17","v":7.500000000000001E-6}]
[null,70,105,{"$f":"Arkusz7!$L$16","v":160},{"$f":"Arkusz7!$L$17","v":7.500000000000001E-6}]
[null,71,115,{"$f":"Arkusz7!$L$16","v":160},{"$f":"Arkusz7!$L$17","v":7.500000000000001E-6}]
[null,72,125,{"$f":"Arkusz7!$L$16","v":160},{"$f":"Arkusz7!$L$17","v":7.500000000000001E-6}]
[null,73,135,{"$f":"Arkusz7!$L$16","v":160},{"$f":"Arkusz7!$L$17","v":7.500000000000001E-6}]
[null,74,100,{"$f":"Arkusz7!$L$16","v":160},{"$f":"Arkusz7!$L$17","v":7.500000000000001E-6}]
[null,75,110,{"$f":"Arkusz7!$L$16","v":160},{"$f":"Arkusz7!$L$17","v":7.500000000000001E-6}]
[null,76,120,{"$f":"Arkusz7!$L$16","v":160},{"$f":"Arkusz7!$L$17","v":7.500000000000001E-6}]
[null,77,130,{"$f":"Arkusz7!$L$16","v":160},{"$f":"Arkusz7!$L$17","v":7.500000000000001E-6}]
[null,78,140,{"$f":"Arkusz7!$L$16","v":160},{"$f":"Arkusz7!$L$17","v":7.500000000000001E-6}]
[null,79,150,{"$f":"Arkusz7!$L$16","v":160},{"$f":"Arkusz7!$L$17","v":7.500000000000001E-6}]
[null,80,160,{"$f":"Arkusz7!$L$16","v":160},{"$f":"Arkusz7!$L$17","v":7.500000000000001E-6}]
[null,81,105,{"$f":"Arkusz7!$L$16","v":160},{"$f":"Arkusz7!$L$17","v":7.500000000000001E-6}]
[null,82,115,{"$f":"Arkusz7!$L$16","v":160},{"$f":"Arkusz7!$L$17","v":7.500000000000001E-6}]
[null,83,125,{"$f":"Arkusz7!$L$16","v":160},{"$f":"Arkusz7!$L$17","v":7.500000000000001E-6}]
[null,84,135,{"$f":"Arkusz7!$L$16","v":160},{"$f":"Arkusz7!$L$17","v":7.500000000000001E-6}]
[null,85,100,{"$f":"Arkusz7!$L$16","v":160},{"$f":"Arkusz7!$L$17","v":7.500000000000001E-6}]
[null,86,110,{"$f":"Arkusz7!$L$16","v":160},{"$f":"Arkusz7!$L$17","v":7.500000000000001E-6}]
[null,87,120,{"$f":"Arkusz7!$L$16","v":160},{"$f":"Arkusz7!$L$17","v":7.500000000000001E-6}]
[null,88,130,{"$f":"Arkusz7!$L$16","v":160},{"$f":"Arkusz7!$L$17","v":7.500000000000001E-6}]
[null,89,140,{"$f":"Arkusz7!$L$16","v":160},{"$f":"Arkusz7!$L$17","v":7.500000000000001E-6}]
[null,90,150,{"$f":"Arkusz7!$L$16","v":160},{"$f":"Arkusz7!$L$17","v":7.500000000000001E-6}]
[null,91,160,{"$f":"Arkusz7!$L$16","v":160},{"$f":"Arkusz7!$L$17","v":7.500000000000001E-6}]
[null,92,105,{"$f":"Arkusz7!$L$16","v":160},{"$f":"Arkusz7!$L$17","v":7.500000000000001E-6}]
[null,93,115,{"$f":"Arkusz7!$L$16","v":160},{"$f":"Arkusz7!$L$17","v":7.500000000000001E-6}]
[null,94,125,{"$f":"Arkusz7!$L$16","v":160},{"$f":"Arkusz7!$L$17","v":7.500000000000001E-6}]
[null,95,135,{"$f":"Arkusz7!$L$16","v":160},{"$f":"Arkusz7!$L$17","v":7.500000000000001E-6}]
[null,96,100,{"$f":"Arkusz7!$L$16","v":160},{"$f":"Arkusz7!$L$17","v":7.500000000000001E-6}]
[null,97,null,{"$f":"Arkusz7!$L$16","v":160},{"$f":"Arkusz7!$L$17","v":7.500000000000001E-6}]
[null,98,null,{"$f":"Arkusz7!$L$16","v":160},{"$f":"Arkusz7!$L$17","v":7.500000000000001E-6}]
[null,99,null,{"$f":"Arkusz7!$L$16","v":160},{"$f":"Arkusz7!$L$17","v":7.500000000000001E-6}]
[null,100,null,{"$f":"Arkusz7!$L$16","v":160},{"$f":"Arkusz7!$L$17","v":7.500000000000001E-6}]
[null,101,null,{"$f":"Arkusz7!$L$16","v":160},{"$f":"Arkusz7!$L$17","v":7.500000000000001E-6}]
[null,102,null,{"$f":"Arkusz7!$L$16","v":160},{"$f":"Arkusz7!$L$17","v":7.500000000000001E-6}]
[null,103,null,{"$f":"Arkusz7!$L$16","v":160},{"$f":"Arkusz7!$L$17","v":7.500000000000001E-6}]
[null,104,null,{"$f":"Arkusz7!$L$16","v":160},{"$f":"Arkusz7!$L$17","v":7.500000000000001E-6}]
[null,105,null,{"$f":"Arkusz7!$L$16","v":160},{"$f":"Arkusz7!$L$17","v":7.500000000000001E-6}]
[null,106,null,{"$f":"Arkusz7!$L$16","v":160},{"$f":"Arkusz7!$L$17","v":7.500000000000001E-6}]
[null,107,null,{"$f":"Arkusz7!$L$16","v":160},{"$f":"Arkusz7!$L$17","v":7.500000000000001E-6}]
[null,108,null,{"$f":"Arkusz7!$L$16","v":160},{"$f":"Arkusz7!$L$17","v":7.500000000000001E-6}]
[null,109,null,{"$f":"Arkusz7!$L$16","v":160},{"$f":"Arkusz7!$L$17","v":7.500000000000001E-6}]
[null,110,null,{"$f":"Arkusz7!$L$16","v":160},{"$f":"Arkusz7!$L$17","v":7.500000000000001E-6}]
[null,111,null,{"$f":"Arkusz7!$L$16","v":160},{"$f":"Arkusz7!$L$17","v":7.500000000000001E-6}]
[null,112,null,{"$f":"Arkusz7!$L$16","v":160},{"$f":"Arkusz7!$L$17","v":7.500000000000001E-6}]
[null,113,null,{"$f":"Arkusz7!$L$16","v":160},{"$f":"Arkusz7!$L$17","v":7.500000000000001E-6}]
[null,114,null,{"$f":"Arkusz7!$L$16","v":160},{"$f":"Arkusz7!$L$17","v":7.500000000000001E-6}]
[null,115,null,{"$f":"Arkusz7!$L$16","v":160},{"$f":"Arkusz7!$L$17","v":7.500000000000001E-6}]
[null,116,null,{"$f":"Arkusz7!$L$16","v":160},{"$f":"Arkusz7!$L$17","v":7.500000000000001E-6}]
[null,117,null,{"$f":"Arkusz7!$L$16","v":160},{"$f":"Arkusz7!$L$17","v":7.500000000000001E-6}]
[null,118,null,{"$f":"Arkusz7!$L$16","v":160},{"$f":"Arkusz7!$L$17","v":7.500000000000001E-6}]
[null,119,null,{"$f":"Arkusz7!$L$16","v":160},{"$f":"Arkusz7!$L$17","v":7.500000000000001E-6}]
[null,120,null,{"$f":"Arkusz7!$L$16","v":160},{"$f":"Arkusz7!$L$17","v":7.500000000000001E-6}]
[null,121,null,{"$f":"Arkusz7!$L$16","v":160},{"$f":"Arkusz7!$L$17","v":7.500000000000001E-6}]
[null,122,null,{"$f":"Arkusz7!$L$16","v":160},{"$f":"Arkusz7!$L$17","v":7.500000000000001E-6}]
[null,123,null,{"$f":"Arkusz7!$L$16","v":160},{"$f":"Arkusz7!$L$17","v":7.500000000000001E-6}]
[null,124,null,{"$f":"Arkusz7!$L$16","v":160},{"$f":"Arkusz7!$L$17","v":7.500000000000001E-6}]
[null,125,null,{"$f":"Arkusz7!$L$16","v":160},{"$f":"Arkusz7!$L$17","v":7.500000000000001E-6}]
[null,126,null,{"$f":"Arkusz7!$L$16","v":160},{"$f":"Arkusz7!$L$17","v":7.500000000000001E-6}]
[null,127,null,{"$f":"Arkusz7!$L$16","v":160},{"$f":"Arkusz7!$L$17","v":7.500000000000001E-6}]
[null,128,null,{"$f":"Arkusz7!$L$16","v":160},{"$f":"Arkusz7!$L$17","v":7.500000000000001E-6}]
[null,129,null,{"$f":"Arkusz7!$L$16","v":160},{"$f":"Arkusz7!$L$17","v":7.500000000000001E-6}]
[null,130,null,{"$f":"Arkusz7!$L$16","v":160},{"$f":"Arkusz7!$L$17","v":7.500000000000001E-6}]
[null,131,null,{"$f":"Arkusz7!$L$16","v":160},{"$f":"Arkusz7!$L$17","v":7.500000000000001E-6}]
[null,132,null,{"$f":"Arkusz7!$L$16","v":160},{"$f":"Arkusz7!$L$17","v":7.500000000000001E-6}]
[null,133,null,{"$f":"Arkusz7!$L$16","v":160},{"$f":"Arkusz7!$L$17","v":7.500000000000001E-6}]
[null,134,null,{"$f":"Arkusz7!$L$16","v":160},{"$f":"Arkusz7!$L$17","v":7.500000000000001E-6}]
[null,135,null,{"$f":"Arkusz7!$L$16","v":160},{"$f":"Arkusz7!$L$17","v":7.500000000000001E-6}]
[null,136,null,{"$f":"Arkusz7!$L$16","v":160},{"$f":"Arkusz7!$L$17","v":7.500000000000001E-6}]
[null,137,null,{"$f":"Arkusz7!$L$16","v":160},{"$f":"Arkusz7!$L$17","v":7.500000000000001E-6}]
[null,138,null,{"$f":"Arkusz7!$L$16","v":160},{"$f":"Arkusz7!$L$17","v":7.500000000000001E-6}]
[null,139,null,{"$f":"Arkusz7!$L$16","v":160},{"$f":"Arkusz7!$L$17","v":7.500000000000001E-6}]
[null,140,null,{"$f":"Arkusz7!$L$16","v":160},{"$f":"Arkusz7!$L$17","v":7.500000000000001E-6}]
[null,141,null,{"$f":"Arkusz7!$L$16","v":160},{"$f":"Arkusz7!$L$17","v":7.500000000000001E-6}]
[null,142,null,{"$f":"Arkusz7!$L$16","v":160},{"$f":"Arkusz7!$L$17","v":7.500000000000001E-6}]
[null,143,null,{"$f":"Arkusz7!$L$16","v":160},{"$f":"Arkusz7!$L$17","v":7.500000000000001E-6}]
[null,144,null,{"$f":"Arkusz7!$L$16","v":160},{"$f":"Arkusz7!$L$17","v":7.500000000000001E-6}]
[null,145,null,{"$f":"Arkusz7!$L$16","v":160},{"$f":"Arkusz7!$L$17","v":7.500000000000001E-6}]
[null,146,null,{"$f":"Arkusz7!$L$16","v":160},{"$f":"Arkusz7!$L$17","v":7.500000000000001E-6}]
[null,147,null,{"$f":"Arkusz7!$L$16","v":160},{"$f":"Arkusz7!$L$17","v":7.500000000000001E-6}]
[null,148,null,{"$f":"Arkusz7!$L$16","v":160},{"$f":"Arkusz7!$L$17","v":7.500000000000001E-6}]
[null,149,null,{"$f":"Arkusz7!$L$16","v":160},{"$f":"Arkusz7!$L$17","v":7.500000000000001E-6}]
[null,150,null,{"$f":"Arkusz7!$L$16","v":160},{"$f":"Arkusz7!$L$17","v":7.500000000000001E-6}]
[null,151,null,{"$f":"Arkusz7!$L$16","v":160},{"$f":"Arkusz7!$L$17","v":7.500000000000001E-6}]
[null,152,null,{"$f":"Arkusz7!$L$16","v":160},{"$f":"Arkusz7!$L$17","v":7.500000000000001E-6}]
[null,153,null,{"$f":"Arkusz7!$L$16","v":160},{"$f":"Arkusz7!$L$17","v":7.500000000000001E-6}]
[null,154,null,{"$f":"Arkusz7!$L$16","v":160},{"$f":"Arkusz7!$L$17","v":7.500000000000001E-6}]
[null,155,null,{"$f":"Arkusz7!$L$16","v":160},{"$f":"Arkusz7!$L$17","v":7.500000000000001E-6}]
[null,156,null,{"$f":"Arkusz7!$L$16","v":160},{"$f":"Arkusz7!$L$17","v":7.500000000000001E-6}]
[null,157,null,{"$f":"Arkusz7!$L$16","v":160},{"$f":"Arkusz7!$L$17","v":7.500000000000001E-6}]
[null,158,null,{"$f":"Arkusz7!$L$16","v":160},{"$f":"Arkusz7!$L$17","v":7.500000000000001E-6}]
[null,159,null,{"$f":"Arkusz7!$L$16","v":160},{"$f":"Arkusz7!$L$17","v":7.500000000000001E-6}]
[null,160,null,{"$f":"Arkusz7!$L$16","v":160},{"$f":"Arkusz7!$L$17","v":7.500000000000001E-6}]
[null,161,null,{"$f":"Arkusz7!$L$16","v":160},{"$f":"Arkusz7!$L$17","v":7.500000000000001E-6}]
[null,162,null,{"$f":"Arkusz7!$L$16","v":160},{"$f":"Arkusz7!$L$17","v":7.500000000000001E-6}]
[null,163,null,{"$f":"Arkusz7!$L$16","v":160},{"$f":"Arkusz7!$L$17","v":7.500000000000001E-6}]
[null,164,null,{"$f":"Arkusz7!$L$16","v":160},{"$f":"Arkusz7!$L$17","v":7.500000000000001E-6}]
[null,165,null,{"$f":"Arkusz7!$L$16","v":160},{"$f":"Arkusz7!$L$17","v":7.500000000000001E-6}]
[null,166,null,{"$f":"Arkusz7!$L$16","v":160},{"$f":"Arkusz7!$L$17","v":7.500000000000001E-6}]
[null,167,null,{"$f":"Arkusz7!$L$16","v":160},{"$f":"Arkusz7!$L$17","v":7.500000000000001E-6}]
[null,168,null,{"$f":"Arkusz7!$L$16","v":160},{"$f":"Arkusz7!$L$17","v":7.500000000000001E-6}]
[null,169,null,{"$f":"Arkusz7!$L$16","v":160},{"$f":"Arkusz7!$L$17","v":7.500000000000001E-6}]
[null,170,null,{"$f":"Arkusz7!$L$16","v":160},{"$f":"Arkusz7!$L$17","v":7.500000000000001E-6}]
[null,171,null,{"$f":"Arkusz7!$L$16","v":160},{"$f":"Arkusz7!$L$17","v":7.500000000000001E-6}]
[null,172,null,{"$f":"Arkusz7!$L$16","v":160},{"$f":"Arkusz7!$L$17","v":7.500000000000001E-6}]
[null,173,null,{"$f":"Arkusz7!$L$16","v":160},{"$f":"Arkusz7!$L$17","v":7.500000000000001E-6}]
[null,174,null,{"$f":"Arkusz7!$L$16","v":160},{"$f":"Arkusz7!$L$17","v":7.500000000000001E-6}]
[null,175,null,{"$f":"Arkusz7!$L$16","v":160},{"$f":"Arkusz7!$L$17","v":7.500000000000001E-6}]
[null,176,null,{"$f":"Arkusz7!$L$16","v":160},{"$f":"Arkusz7!$L$17","v":7.500000000000001E-6}]
[null,177,null,{"$f":"Arkusz7!$L$16","v":160},{"$f":"Arkusz7!$L$17","v":7.500000000000001E-6}]
[null,178,null,{"$f":"Arkusz7!$L$16","v":160},{"$f":"Arkusz7!$L$17","v":7.500000000000001E-6}]
[null,179,null,{"$f":"Arkusz7!$L$16","v":160},{"$f":"Arkusz7!$L$17","v":7.500000000000001E-6}]
[null,180,null,{"$f":"Arkusz7!$L$16","v":160},{"$f":"Arkusz7!$L$17","v":7.500000000000001E-6}]
[null,181,null,{"$f":"Arkusz7!$L$16","v":160},{"$f":"Arkusz7!$L$17","v":7.500000000000001E-6}]
[null,182,null,{"$f":"Arkusz7!$L$16","v":160},{"$f":"Arkusz7!$L$17","v":7.500000000000001E-6}]
[null,183,null,{"$f":"Arkusz7!$L$16","v":160},{"$f":"Arkusz7!$L$17","v":7.500000000000001E-6}]
[null,184,null,{"$f":"Arkusz7!$L$16","v":160},{"$f":"Arkusz7!$L$17","v":7.500000000000001E-6}]
[null,185,null,{"$f":"Arkusz7!$L$16","v":160},{"$f":"Arkusz7!$L$17","v":7.500000000000001E-6}]
[null,186,null,{"$f":"Arkusz7!$L$16","v":160},{"$f":"Arkusz7!$L$17","v":7.500000000000001E-6}]
[null,187,null,{"$f":"Arkusz7!$L$16","v":160},{"$f":"Arkusz7!$L$17","v":7.500000000000001E-6}]
[null,188,null,{"$f":"Arkusz7!$L$16","v":160},{"$f":"Arkusz7!$L$17","v":7.500000000000001E-6}]
[null,189,null,{"$f":"Arkusz7!$L$16","v":160},{"$f":"Arkusz7!$L$17","v":7.500000000000001E-6}]
[null,190,null,{"$f":"Arkusz7!$L$16","v":160},{"$f":"Arkusz7!$L$17","v":7.500000000000001E-6}]
[null,191,null,{"$f":"Arkusz7!$L$16","v":160},{"$f":"Arkusz7!$L$17","v":7.500000000000001E-6}]
[null,192,null,{"$f":"Arkusz7!$L$16","v":160},{"$f":"Arkusz7!$L$17","v":7.500000000000001E-6}]
[null,193,null,{"$f":"Arkusz7!$L$16","v":160},{"$f":"Arkusz7!$L$17","v":7.500000000000001E-6}]
[null,194,null,{"$f":"Arkusz7!$L$16","v":160},{"$f":"Arkusz7!$L$17","v":7.500000000000001E-6}]
[null,195,null,{"$f":"Arkusz7!$L$16","v":160},{"$f":"Arkusz7!$L$17","v":7.500000000000001E-6}]
[null,196,null,{"$f":"Arkusz7!$L$16","v":160},{"$f":"Arkusz7!$L$17","v":7.500000000000001E-6}]
[null,197,null,{"$f":"Arkusz7!$L$16","v":160},{"$f":"Arkusz7!$L$17","v":7.500000000000001E-6}]
[null,198,null,{"$f":"Arkusz7!$L$16","v":160},{"$f":"Arkusz7!$L$17","v":7.500000000000001E-6}]
[null,199,null,{"$f":"Arkusz7!$L$16","v":160},{"$f":"Arkusz7!$L$17","v":7.500000000000001E-6}]
[null,200,null,{"$f":"Arkusz7!$L$16","v":160},{"$f":"Arkusz7!$L$17","v":7.500000000000001E-6}]
[null,201,null,{"$f":"Arkusz7!$L$16","v":160},{"$f":"Arkusz7!$L$17","v":7.500000000000001E-6}]
[null,202,null,{"$f":"Arkusz7!$L$16","v":160},{"$f":"Arkusz7!$L$17","v":7.500000000000001E-6}]
[null,203,null,{"$f":"Arkusz7!$L$16","v":160},{"$f":"Arkusz7!$L$17","v":7.500000000000001E-6}]
[null,204,null,{"$f":"Arkusz7!$L$16","v":160},{"$f":"Arkusz7!$L$17","v":7.500000000000001E-6}]
[null,205,null,{"$f":"Arkusz7!$L$16","v":160},{"$f":"Arkusz7!$L$17","v":7.500000000000001E-6}]
[null,206,null,{"$f":"Arkusz7!$L$16","v":160},{"$f":"Arkusz7!$L$17","v":7.500000000000001E-6}]
[null,207,null,{"$f":"Arkusz7!$L$16","v":160},{"$f":"Arkusz7!$L$17","v":7.500000000000001E-6}]
[null,208,null,{"$f":"Arkusz7!$L$16","v":160},{"$f":"Arkusz7!$L$17","v":7.500000000000001E-6}]
[null,209,null,{"$f":"Arkusz7!$L$16","v":160},{"$f":"Arkusz7!$L$17","v":7.500000000000001E-6}]
[null,210,null,{"$f":"Arkusz7!$L$16","v":160},{"$f":"Arkusz7!$L$17","v":7.500000000000001E-6}]
[null,211,null,{"$f":"Arkusz7!$L$16","v":160},{"$f":"Arkusz7!$L$17","v":7.500000000000001E-6}]
[null,212,null,{"$f":"Arkusz7!$L$16","v":160},{"$f":"Arkusz7!$L$17","v":7.500000000000001E-6}]
[null,213,null,{"$f":"Arkusz7!$L$16","v":160},{"$f":"Arkusz7!$L$17","v":7.500000000000001E-6}]
[null,214,null,{"$f":"Arkusz7!$L$16","v":160},{"$f":"Arkusz7!$L$17","v":7.500000000000001E-6}]
[null,215,null,{"$f":"Arkusz7!$L$16","v":160},{"$f":"Arkusz7!$L$17","v":7.500000000000001E-6}]
[null,216,null,{"$f":"Arkusz7!$L$16","v":160},{"$f":"Arkusz7!$L$17","v":7.500000000000001E-6}]
[null,217,null,{"$f":"Arkusz7!$L$16","v":160},{"$f":"Arkusz7!$L$17","v":7.500000000000001E-6}]
[null,218,null,{"$f":"Arkusz7!$L$16","v":160},{"$f":"Arkusz7!$L$17","v":7.500000000000001E-6}]
[null,219,null,{"$f":"Arkusz7!$L$16","v":160},{"$f":"Arkusz7!$L$17","v":7.500000000000001E-6}]
[null,220,null,{"$f":"Arkusz7!$L$16","v":160},{"$f":"Arkusz7!$L$17","v":7.500000000000001E-6}]
[null,221,null,{"$f":"Arkusz7!$L$16","v":160},{"$f":"Arkusz7!$L$17","v":7.500000000000001E-6}]
[null,222,null,{"$f":"Arkusz7!$L$16","v":160},{"$f":"Arkusz7!$L$17","v":7.500000000000001E-6}]
[null,223,null,{"$f":"Arkusz7!$L$16","v":160},{"$f":"Arkusz7!$L$17","v":7.500000000000001E-6}]
[null,224,null,{"$f":"Arkusz7!$L$16","v":160},{"$f":"Arkusz7!$L$17","v":7.500000000000001E-6}]
[null,225,null,{"$f":"Arkusz7!$L$16","v":160},{"$f":"Arkusz7!$L$17","v":7.500000000000001E-6}]
[null,226,null,{"$f":"Arkusz7!$L$16","v":160},{"$f":"Arkusz7!$L$17","v":7.500000000000001E-6}]
[null,227,null,{"$f":"Arkusz7!$L$16","v":160},{"$f":"Arkusz7!$L$17","v":7.500000000000001E-6}]
[null,228,null,{"$f":"Arkusz7!$L$16","v":160},{"$f":"Arkusz7!$L$17","v":7.500000000000001E-6}]
[null,229,null,{"$f":"Arkusz7!$L$16","v":160},{"$f":"Arkusz7!$L$17","v":7.500000000000001E-6}]
[null,230,null,{"$f":"Arkusz7!$L$16","v":160},{"$f":"Arkusz7!$L$17","v":7.500000000000001E-6}]
[null,231,null,{"$f":"Arkusz7!$L$16","v":160},{"$f":"Arkusz7!$L$17","v":7.500000000000001E-6}]
[null,232,null,{"$f":"Arkusz7!$L$16","v":160},{"$f":"Arkusz7!$L$17","v":7.500000000000001E-6}]
[null,233,null,{"$f":"Arkusz7!$L$16","v":160},{"$f":"Arkusz7!$L$17","v":7.500000000000001E-6}]
[null,234,null,{"$f":"Arkusz7!$L$16","v":160},{"$f":"Arkusz7!$L$17","v":7.500000000000001E-6}]
[null,235,null,{"$f":"Arkusz7!$L$16","v":160},{"$f":"Arkusz7!$L$17","v":7.500000000000001E-6}]
[null,236,null,{"$f":"Arkusz7!$L$16","v":160},{"$f":"Arkusz7!$L$17","v":7.500000000000001E-6}]
[null,237,null,{"$f":"Arkusz7!$L$16","v":160},{"$f":"Arkusz7!$L$17","v":7.500000000000001E-6}]
[null,238,null,{"$f":"Arkusz7!$L$16","v":160},{"$f":"Arkusz7!$L$17","v":7.500000000000001E-6}]
[null,239,null,{"$f":"Arkusz7!$L$16","v":160},{"$f":"Arkusz7!$L$17","v":7.500000000000001E-6}]
[null,240,null,{"$f":"Arkusz7!$L$16","v":160},{"$f":"Arkusz7!$L$17","v":7.500000000000001E-6}]
[null,241,null,{"$f":"Arkusz7!$L$16","v":160},{"$f":"Arkusz7!$L$17","v":7.500000000000001E-6}]
[null,242,null,{"$f":"Arkusz7!$L$16","v":160},{"$f":"Arkusz7!$L$17","v":7.500000000000001E-6}]
[null,243,null,{"$f":"Arkusz7!$L$16","v":160},{"$f":"Arkusz7!$L$17","v":7.500000000000001E-6}]
[null,244,null,{"$f":"Arkusz7!$L$16","v":160},{"$f":"Arkusz7!$L$17","v":7.500000000000001E-6}]
[null,245,null,{"$f":"Arkusz7!$L$16","v":160},{"$f":"Arkusz7!$L$17","v":7.500000000000001E-6}]
[null,246,null,{"$f":"Arkusz7!$L$16","v":160},{"$f":"Arkusz7!$L$17","v":7.500000000000001E-6}]
[null,247,null,{"$f":"Arkusz7!$L$16","v":160},{"$f":"Arkusz7!$L$17","v":7.500000000000001E-6}]
[null,248,null,{"$f":"Arkusz7!$L$16","v":160},{"$f":"Arkusz7!$L$17","v":7.500000000000001E-6}]
[null,249,null,{"$f":"Arkusz7!$L$16","v":160},{"$f":"Arkusz7!$L$17","v":7.500000000000001E-6}]
[null,250,null,{"$f":"Arkusz7!$L$16","v":160},{"$f":"Arkusz7!$L$17","v":7.500000000000001E-6}]
[null,251,null,{"$f":"Arkusz7!$L$16","v":160},{"$f":"Arkusz7!$L$17","v":7.500000000000001E-6}]
[null,252,null,{"$f":"Arkusz7!$L$16","v":160},{"$f":"Arkusz7!$L$17","v":7.500000000000001E-6}]
[null,253,null,{"$f":"Arkusz7!$L$16","v":160},{"$f":"Arkusz7!$L$17","v":7.500000000000001E-6}]
[null,254,null,{"$f":"Arkusz7!$L$16","v":160},{"$f":"Arkusz7!$L$17","v":7.500000000000001E-6}]
[null,255,null,{"$f":"Arkusz7!$L$16","v":160},{"$f":"Arkusz7!$L$17","v":7.500000000000001E-6}]
[null,256,null,{"$f":"Arkusz7!$L$16","v":160},{"$f":"Arkusz7!$L$17","v":7.500000000000001E-6}]
[null,257,null,{"$f":"Arkusz7!$L$16","v":160},{"$f":"Arkusz7!$L$17","v":7.500000000000001E-6}]
[null,258,null,{"$f":"Arkusz7!$L$16","v":160},{"$f":"Arkusz7!$L$17","v":7.500000000000001E-6}]
[null,259,null,{"$f":"Arkusz7!$L$16","v":160},{"$f":"Arkusz7!$L$17","v":7.500000000000001E-6}]
[null,260,null,{"$f":"Arkusz7!$L$16","v":160},{"$f":"Arkusz7!$L$17","v":7.500000000000001E-6}]
[null,261,null,{"$f":"Arkusz7!$L$16","v":160},{"$f":"Arkusz7!$L$17","v":7.500000000000001E-6}]
[null,262,null,{"$f":"Arkusz7!$L$16","v":160},{"$f":"Arkusz7!$L$17","v":7.500000000000001E-6}]
[null,263,null,{"$f":"Arkusz7!$L$16","v":160},{"$f":"Arkusz7!$L$17","v":7.500000000000001E-6}]
[null,264,null,{"$f":"Arkusz7!$L$16","v":160},{"$f":"Arkusz7!$L$17","v":7.500000000000001E-6}]
[null,265,null,{"$f":"Arkusz7!$L$16","v":160},{"$f":"Arkusz7!$L$17","v":7.500000000000001E-6}]
[null,266,null,{"$f":"Arkusz7!$L$16","v":160},{"$f":"Arkusz7!$L$17","v":7.500000000000001E-6}]
[null,267,null,{"$f":"Arkusz7!$L$16","v":160},{"$f":"Arkusz7!$L$17","v":7.500000000000001E-6}]
[null,268,null,{"$f":"Arkusz7!$L$16","v":160},{"$f":"Arkusz7!$L$17","v":7.500000000000001E-6}]
[null,269,null,{"$f":"Arkusz7!$L$16","v":160},{"$f":"Arkusz7!$L$17","v":7.500000000000001E-6}]
[null,270,null,{"$f":"Arkusz7!$L$16","v":160},{"$f":"Arkusz7!$L$17","v":7.500000000000001E-6}]
[null,271,null,{"$f":"Arkusz7!$L$16","v":160},{"$f":"Arkusz7!$L$17","v":7.500000000000001E-6}]
[null,272,null,{"$f":"Arkusz7!$L$16","v":160},{"$f":"Arkusz7!$L$17","v":7.500000000000001E-6}]
[null,273,null,{"$f":"Arkusz7!$L$16","v":160},{"$f":"Arkusz7!$L$17","v":7.500000000000001E-6}]
[null,274,null,{"$f":"Arkusz7!$L$16","v":160},{"$f":"Arkusz7!$L$17","v":7.500000000000001E-6}]
[null,275,null,{"$f":"Arkusz7!$L$16","v":160},{"$f":"Arkusz7!$L$17","v":7.500000000000001E-6}]
[null,276,null,{"$f":"Arkusz7!$L$16","v":160},{"$f":"Arkusz7!$L$17","v":7.500000000000001E-6}]
[null,277,null,{"$f":"Arkusz7!$L$16","v":160},{"$f":"Arkusz7!$L$17","v":7.500000000000001E-6}]
[null,278,null,{"$f":"Arkusz7!$L$16","v":160},{"$f":"Arkusz7!$L$17","v":7.500000000000001E-6}]
[null,279,null,{"$f":"Arkusz7!$L$16","v":160},{"$f":"Arkusz7!$L$17","v":7.500000000000001E-6}]
[null,280,null,{"$f":"Arkusz7!$L$16","v":160},{"$f":"Arkusz7!$L$17","v":7.500000000000001E-6}]
[null,281,null,{"$f":"Arkusz7!$L$16","v":160},{"$f":"Arkusz7!$L$17","v":7.500000000000001E-6}]
[null,282,null,{"$f":"Arkusz7!$L$16","v":160},{"$f":"Arkusz7!$L$17","v":7.500000000000001E-6}]
[null,283,null,{"$f":"Arkusz7!$L$16","v":160},{"$f":"Arkusz7!$L$17","v":7.500000000000001E-6}]
[null,284,null,{"$f":"Arkusz7!$L$16","v":160},{"$f":"Arkusz7!$L$17","v":7.500000000000001E-6}]
[null,285,null,{"$f":"Arkusz7!$L$16","v":160},{"$f":"Arkusz7!$L$17","v":7.500000000000001E-6}]
[null,286,null,{"$f":"Arkusz7!$L$16","v":160},{"$f":"Arkusz7!$L$17","v":7.500000000000001E-6}]
[null,287,null,{"$f":"Arkusz7!$L$16","v":160},{"$f":"Arkusz7!$L$17","v":7.500000000000001E-6}]
[null,288,null,{"$f":"Arkusz7!$L$16","v":160},{"$f":"Arkusz7!$L$17","v":7.500000000000001E-6}]
[null,289,null,{"$f":"Arkusz7!$L$16","v":160},{"$f":"Arkusz7!$L$17","v":7.500000000000001E-6}]
[null,290,null,{"$f":"Arkusz7!$L$16","v":160},{"$f":"Arkusz7!$L$17","v":7.500000000000001E-6}]
[null,291,null,{"$f":"Arkusz7!$L$16","v":160},{"$f":"Arkusz7!$L$17","v":7.500000000000001E-6}]
[null,292,null,{"$f":"Arkusz7!$L$16","v":160},{"$f":"Arkusz7!$L$17","v":7.500000000000001E-6}]
[null,293,null,{"$f":"Arkusz7!$L$16","v":160},{"$f":"Arkusz7!$L$17","v":7.500000000000001E-6}]
[null,294,null,{"$f":"Arkusz7!$L$16","v":160},{"$f":"Arkusz7!$L$17","v":7.500000000000001E-6}]
[null,295,null,{"$f":"Arkusz7!$L$16","v":160},{"$f":"Arkusz7!$L$17","v":7.500000000000001E-6}]
[null,296,null,{"$f":"Arkusz7!$L$16","v":160},{"$f":"Arkusz7!$L$17","v":7.500000000000001E-6}]
[null,297,null,{"$f":"Arkusz7!$L$16","v":160},{"$f":"Arkusz7!$L$17","v":7.500000000000001E-6}]
[null,298,null,{"$f":"Arkusz7!$L$16","v":160},{"$f":"Arkusz7!$L$17","v":7.500000000000001E-6}]
[null,299,null,{"$f":"Arkusz7!$L$16","v":160},{"$f":"Arkusz7!$L$17","v":7.500000000000001E-6}]
[null,300,null,{"$f":"Arkusz7!$L$16","v":160},{"$f":"Arkusz7!$L$17","v":7.500000000000001E-6}]
[null,301,null,{"$f":"Arkusz7!$L$16","v":160},{"$f":"Arkusz7!$L$17","v":7.500000000000001E-6}]
[null,302,null,{"$f":"Arkusz7!$L$16","v":160},{"$f":"Arkusz7!$L$17","v":7.500000000000001E-6}]
[null,303,null,{"$f":"Arkusz7!$L$16","v":160},{"$f":"Arkusz7!$L$17","v":7.500000000000001E-6}]
[null,304,null,{"$f":"Arkusz7!$L$16","v":160},{"$f":"Arkusz7!$L$17","v":7.500000000000001E-6}]
[null,305,null,{"$f":"Arkusz7!$L$16","v":160},{"$f":"Arkusz7!$L$17","v":7.500000000000001E-6}]
[null,306,null,{"$f":"Arkusz7!$L$16","v":160},{"$f":"Arkusz7!$L$17","v":7.500000000000001E-6}]
[null,307,null,{"$f":"Arkusz7!$L$16","v":160},{"$f":"Arkusz7!$L$17","v":7.500000000000001E-6}]
[null,308,null,{"$f":"Arkusz7!$L$16","v":160},{"$f":"Arkusz7!$L$17","v":7.500000000000001E-6}]
[null,309,null,{"$f":"Arkusz7!$L$16","v":160},{"$f":"Arkusz7!$L$17","v":7.500000000000001E-6}]
[null,310,null,{"$f":"Arkusz7!$L$16","v":160},{"$f":"Arkusz7!$L$17","v":7.500000000000001E-6}]
[null,311,null,{"$f":"Arkusz7!$L$16","v":160},{"$f":"Arkusz7!$L$17","v":7.500000000000001E-6}]
[null,312,null,{"$f":"Arkusz7!$L$16","v":160},{"$f":"Arkusz7!$L$17","v":7.500000000000001E-6}]
[null,313,null,{"$f":"Arkusz7!$L$16","v":160},{"$f":"Arkusz7!$L$17","v":7.500000000000001E-6}]
[null,314,null,{"$f":"Arkusz7!$L$16","v":160},{"$f":"Arkusz7!$L$17","v":7.500000000000001E-6}]
[null,315,null,{"$f":"Arkusz7!$L$16","v":160},{"$f":"Arkusz7!$L$17","v":7.500000000000001E-6}]
[null,316,null,{"$f":"Arkusz7!$L$16","v":160},{"$f":"Arkusz7!$L$17","v":7.500000000000001E-6}]
[null,317,null,{"$f":"Arkusz7!$L$16","v":160},{"$f":"Arkusz7!$L$17","v":7.500000000000001E-6}]
[null,318,null,{"$f":"Arkusz7!$L$16","v":160},{"$f":"Arkusz7!$L$17","v":7.500000000000001E-6}]
[null,319,null,{"$f":"Arkusz7!$L$16","v":160},{"$f":"Arkusz7!$L$17","v":7.500000000000001E-6}]
[null,320,null,{"$f":"Arkusz7!$L$16","v":160},{"$f":"Arkusz7!$L$17","v":7.500000000000001E-6}]
[null,321,null,{"$f":"Arkusz7!$L$16","v":160},{"$f":"Arkusz7!$L$17","v":7.500000000000001E-6}]
[null,322,null,{"$f":"Arkusz7!$L$16","v":160},{"$f":"Arkusz7!$L$17","v":7.500000000000001E-6}]
[null,323,null,{"$f":"Arkusz7!$L$16","v":160},{"$f":"Arkusz7!$L$17","v":7.500000000000001E-6}]
[null,324,null,{"$f":"Arkusz7!$L$16","v":160},{"$f":"Arkusz7!$L$17","v":7.500000000000001E-6}]
[null,325,null,{"$f":"Arkusz7!$L$16","v":160},{"$f":"Arkusz7!$L$17","v":7.500000000000001E-6}]
[null,326,null,{"$f":"Arkusz7!$L$16","v":160},{"$f":"Arkusz7!$L$17","v":7.500000000000001E-6}]
[null,327,null,{"$f":"Arkusz7!$L$16","v":160},{"$f":"Arkusz7!$L$17","v":7.500000000000001E-6}]
[null,328,null,{"$f":"Arkusz7!$L$16","v":160},{"$f":"Arkusz7!$L$17","v":7.500000000000001E-6}]
[null,329,null,{"$f":"Arkusz7!$L$16","v":160},{"$f":"Arkusz7!$L$17","v":7.500000000000001E-6}]
[null,330,null,{"$f":"Arkusz7!$L$16","v":160},{"$f":"Arkusz7!$L$17","v":7.500000000000001E-6}]
[null,331,null,{"$f":"Arkusz7!$L$16","v":160},{"$f":"Arkusz7!$L$17","v":7.500000000000001E-6}]
[null,332,null,{"$f":"Arkusz7!$L$16","v":160},{"$f":"Arkusz7!$L$17","v":7.500000000000001E-6}]
[null,333,null,{"$f":"Arkusz7!$L$16","v":160},{"$f":"Arkusz7!$L$17","v":7.500000000000001E-6}]
[null,334,null,{"$f":"Arkusz7!$L$16","v":160},{"$f":"Arkusz7!$L$17","v":7.500000000000001E-6}]
[null,335,null,{"$f":"Arkusz7!$L$16","v":160},{"$f":"Arkusz7!$L$17","v":7.500000000000001E-6}]
[null,336,null,{"$f":"Arkusz7!$L$16","v":160},{"$f":"Arkusz7!$L$17","v":7.500000000000001E-6}]
[null,337,null,{"$f":"Arkusz7!$L$16","v":160},{"$f":"Arkusz7!$L$17","v":7.500000000000001E-6}]
[null,338,null,{"$f":"Arkusz7!$L$16","v":160},{"$f":"Arkusz7!$L$17","v":7.500000000000001E-6}]
[null,339,null,{"$f":"Arkusz7!$L$16","v":160},{"$f":"Arkusz7!$L$17","v":7.500000000000001E-6}]
[null,340,null,{"$f":"Arkusz7!$L$16","v":160},{"$f":"Arkusz7!$L$17","v":7.500000000000001E-6}]
[null,341,null,{"$f":"Arkusz7!$L$16","v":160},{"$f":"Arkusz7!$L$17","v":7.500000000000001E-6}]
[null,342,null,{"$f":"Arkusz7!$L$16","v":160},{"$f":"Arkusz7!$L$17","v":7.500000000000001E-6}]
[null,343,null,{"$f":"Arkusz7!$L$16","v":160},{"$f":"Arkusz7!$L$17","v":7.500000000000001E-6}]
[null,344,null,{"$f":"Arkusz7!$L$16","v":160},{"$f":"Arkusz7!$L$17","v":7.500000000000001E-6}]
[null,345,null,{"$f":"Arkusz7!$L$16","v":160},{"$f":"Arkusz7!$L$17","v":7.500000000000001E-6}]
[null,346,null,{"$f":"Arkusz7!$L$16","v":160},{"$f":"Arkusz7!$L$17","v":7.500000000000001E-6}]
[null,347,null,{"$f":"Arkusz7!$L$16","v":160},{"$f":"Arkusz7!$L$17","v":7.500000000000001E-6}]
[null,348,null,{"$f":"Arkusz7!$L$16","v":160},{"$f":"Arkusz7!$L$17","v":7.500000000000001E-6}]
[null,349,null,{"$f":"Arkusz7!$L$16","v":160},{"$f":"Arkusz7!$L$17","v":7.500000000000001E-6}]
[null,350,null,{"$f":"Arkusz7!$L$16","v":160},{"$f":"Arkusz7!$L$17","v":7.500000000000001E-6}]
[null,351,null,{"$f":"Arkusz7!$L$16","v":160},{"$f":"Arkusz7!$L$17","v":7.500000000000001E-6}]
[null,352,null,{"$f":"Arkusz7!$L$16","v":160},{"$f":"Arkusz7!$L$17","v":7.500000000000001E-6}]
[null,353,null,{"$f":"Arkusz7!$L$16","v":160},{"$f":"Arkusz7!$L$17","v":7.500000000000001E-6}]
[null,354,null,{"$f":"Arkusz7!$L$16","v":160},{"$f":"Arkusz7!$L$17","v":7.500000000000001E-6}]
[null,355,null,{"$f":"Arkusz7!$L$16","v":160},{"$f":"Arkusz7!$L$17","v":7.500000000000001E-6}]
[null,356,null,{"$f":"Arkusz7!$L$16","v":160},{"$f":"Arkusz7!$L$17","v":7.500000000000001E-6}]
[null,357,null,{"$f":"Arkusz7!$L$16","v":160},{"$f":"Arkusz7!$L$17","v":7.500000000000001E-6}]
[null,358,null,{"$f":"Arkusz7!$L$16","v":160},{"$f":"Arkusz7!$L$17","v":7.500000000000001E-6}]
[null,359,null,{"$f":"Arkusz7!$L$16","v":160},{"$f":"Arkusz7!$L$17","v":7.500000000000001E-6}]
[null,360,null,{"$f":"Arkusz7!$L$16","v":160},{"$f":"Arkusz7!$L$17","v":7.500000000000001E-6}]
[null,361,null,{"$f":"Arkusz7!$L$16","v":160},{"$f":"Arkusz7!$L$17","v":7.500000000000001E-6}]
[null,362,null,{"$f":"Arkusz7!$L$16","v":160},{"$f":"Arkusz7!$L$17","v":7.500000000000001E-6}]
[null,363,null,{"$f":"Arkusz7!$L$16","v":160},{"$f":"Arkusz7!$L$17","v":7.500000000000001E-6}]
[null,364,null,{"$f":"Arkusz7!$L$16","v":160},{"$f":"Arkusz7!$L$17","v":7.500000000000001E-6}]
[null,365,null,{"$f":"Arkusz7!$L$16","v":160},{"$f":"Arkusz7!$L$17","v":7.500000000000001E-6}]
[null,366,null,{"$f":"Arkusz7!$L$16","v":160},{"$f":"Arkusz7!$L$17","v":7.500000000000001E-6}]

{"sheet":"IX poziom","index":2,"n_rows":369,"n_cols":8,"rows_kept":369,"cut":false,"hidden":true,"merged":[[13,4,14,6],[13,7,14,7]]}
[]
[]
[null,"Lp","Wartość"]
[null,1,500]
[null,2,100]
[null,3,30]
[null,4,25]
[null,5,30]
[null,6,74]
[null,7,1000]
[null,8,55]
[null,9,115]
[null,10,0]
[null,11,135,null,"Liczba rekordów nie-zerowych:",null,null,{"$f":"COUNTIF(Tabela5[Wartość],\">0\")","v":96}]
[null,12,0]
[null,13,0]
[null,14,120]
[null,15,0]
[null,16,0]
[null,17,0]
[null,18,160]
[null,19,105]
[null,20,115]
[null,21,0]
[null,22,0]
[null,23,0]
[null,24,0]
[null,25,0]
[null,26,0]
[null,27,0]
[null,28,0]
[null,29,0]
[null,30,0]
[null,31,0]
[null,32,0]
[null,33,0]
[null,34,0]
[null,35,0]
[null,36,0]
[null,37,0]
[null,38,0]
[null,39,0]
[null,40,0]
[null,41,0]
[null,42,0]
[null,43,0]
[null,44,0]
[null,45,0]
[null,46,0]
[null,47,0]
[null,48,130]
[null,49,140]
[null,50,150]
[null,51,160]
[null,52,105]
[null,53,115]
[null,54,125]
[null,55,135]
[null,56,100]
[null,57,0]
[null,58,0]
[null,59,0]
[null,60,0]
[null,61,0]
[null,62,0]
[null,63,0]
[null,64,0]
[null,65,0]
[null,66,0]
[null,67,0]
[null,68,0]
[null,69,0]
[null,70,0]
[null,71,0]
[null,72,0]
[null,73,0]
[null,74,0]
[null,75,0]
[null,76,0]
[null,77,0]
[null,78,0]
[null,79,0]
[null,80,0]
[null,81,0]
[null,82,0]
[null,83,0]
[null,84,0]
[null,85,0]
[null,86,0]
[null,87,0]
[null,88,0]
[null,89,0]
[null,90,0]
[null,91,0]
[null,92,0]
[null,93,0]
[null,94,0]
[null,95,0]
[null,96,0]
[null,97,0]
[null,98,0]
[null,99,0]
[null,100,0]
[null,101,0]
[null,102,0]
[null,103,0]
[null,104,0]
[null,105,0]
[null,106,0]
[null,107,0]
[null,108,0]
[null,109,0]
[null,110,0]
[null,111,0]
[null,112,0]
[null,113,0]
[null,114,0]
[null,115,0]
[null,116,0]
[null,117,0]
[null,118,0]
[null,119,0]
[null,120,0]
[null,121,0]
[null,122,0]
[null,123,0]
[null,124,0]
[null,125,0]
[null,126,0]
[null,127,0]
[null,128,0]
[null,129,0]
[null,130,0]
[null,131,0]
[null,132,0]
[null,133,0]
[null,134,0]
[null,135,0]
[null,136,0]
[null,137,0]
[null,138,0]
[null,139,0]
[null,140,0]
[null,141,0]
[null,142,0]
[null,143,0]
[null,144,0]
[null,145,0]
[null,146,0]
[null,147,0]
[null,148,0]
[null,149,0]
[null,150,0]
[null,151,0]
[null,152,0]
[null,153,0]
[null,154,0]
[null,155,0]
[null,156,0]
[null,157,0]
[null,158,0]
[null,159,0]
[null,160,0]
[null,161,0]
[null,162,0]
[null,163,0]
[null,164,0]
[null,165,0]
[null,166,0]
[null,167,0]
[null,168,0]
[null,169,0]
[null,170,0]
[null,171,0]
[null,172,0]
[null,173,0]
[null,174,0]
[null,175,0]
[null,176,0]
[null,177,0]
[null,178,0]
[null,179,0]
[null,180,0]
[null,181,0]
[null,182,0]
[null,183,0]
[null,184,0]
[null,185,0]
[null,186,0]
[null,187,0]
[null,188,0]
[null,189,0]
[null,190,0]
[null,191,0]
[null,192,0]
[null,193,0]
[null,194,0]
[null,195,0]
[null,196,0]
[null,197,0]
[null,198,0]
[null,199,0]
[null,200,0]
[null,201,0]
[null,202,0]
[null,203,0]
[null,204,0]
[null,205,0]
[null,206,0]
[null,207,0]
[null,208,0]
[null,209,0]
[null,210,0]
[null,211,0]
[null,212,0]
[null,213,0]
[null,214,0]
[null,215,0]
[null,216,0]
[null,217,0]
[null,218,0]
[null,219,0]
[null,220,0]
[null,221,0]
[null,222,0]
[null,223,0]
[null,224,0]
[null,225,0]
[null,226,0]
[null,227,0]
[null,228,0]
[null,229,0]
[null,230,0]
[null,231,0]
[null,232,0]
[null,233,0]
[null,234,0]
[null,235,0]
[null,236,0]
[null,237,0]
[null,238,0]
[null,239,0]
[null,240,0]
[null,241,0]
[null,242,0]
[null,243,0]
[null,244,0]
[null,245,0]
[null,246,0]
[null,247,0]
[null,248,0]
[null,249,0]
[null,250,0]
[null,251,0]
[null,252,0]
[null,253,0]
[null,254,0]
[null,255,0]
[null,256,0]
[null,257,0]
[null,258,0]
[null,259,0]
[null,260,0]
[null,261,0]
[null,262,0]
[null,263,0]
[null,264,0]
[null,265,0]
[null,266,0]
[null,267,0]
[null,268,0]
[null,269,0]
[null,270,0]
[null,271,0]
[null,272,0]
[null,273,0]
[null,274,0]
[null,275,0]
[null,276,0]
[null,277,0]
[null,278,0]
[null,279,0]
[null,280,0]
[null,281,150]
[null,282,160]
[null,283,105]
[null,284,115]
[null,285,125]
[null,286,135]
[null,287,100]
[null,288,110]
[null,289,120]
[null,290,130]
[null,291,140]
[null,292,150]
[null,293,160]
[null,294,105]
[null,295,115]
[null,296,125]
[null,297,135]
[null,298,100]
[null,299,110]
[null,300,120]
[null,301,130]
[null,302,140]
[null,303,150]
[null,304,160]
[null,305,105]
[null,306,115]
[null,307,125]
[null,308,135]
[null,309,100]
[null,310,110]
[null,311,120]
[null,312,130]
[null,313,140]
[null,314,150]
[null,315,160]
[null,316,105]
[null,317,115]
[null,318,125]
[null,319,135]
[null,320,100]
[null,321,110]
[null,322,120]
[null,323,130]
[null,324,140]
[null,325,150]
[null,326,160]
[null,327,105]
[null,328,115]
[null,329,125]
[null,330,135]
[null,331,100]
[null,332,110]
[null,333,120]
[null,334,130]
[null,335,140]
[null,336,150]
[null,337,160]
[null,338,105]
[null,339,115]
[null,340,125]
[null,341,135]
[null,342,100]
[null,343,110]
[null,344,120]
[null,345,130]
[null,346,140]
[null,347,150]
[null,348,160]
[null,349,105]
[null,350,115]
[null,351,125]
[null,352,135]
[null,353,100]
[null,354,0]
[null,355,0]
[null,356,0]
[null,357,0]
[null,358,0]
[null,359,0]
[null,360,0]
[null,361,0]
[null,362,0]
[null,363,0]
[null,364,0]
[null,365,0]
[null,366,0]

{"sheet":"VIII poziom","index":3,"n_rows":14,"n_cols":3,"rows_kept":14,"cut":false,"hidden":true,"merged":[]}
[]
[]
[null,"Lp","Wartość"]
[null,1,55]
[null,2,45]
[null,3,62]
[null,4,52]
[null,5,44]
[null,6,56]
[null,7,58]
[null,8,59]
[null,9,62]
[null,10,47]
[null,11,58]

{"sheet":"VII poziom","index":4,"n_rows":9,"n_cols":3,"rows_kept":9,"cut":false,"hidden":true,"merged":[]}
[]
[]
[null,"Lp","Wartość"]
[null,1,55]
[null,2,51]
[null,3,62]
[null,4,52]
[null,5,44]
[null,6,56]

{"sheet":"V poziom","index":5,"n_rows":6,"n_cols":3,"rows_kept":6,"cut":false,"hidden":true,"merged":[]}
[]
[]
[null,"Lp","Wartość"]
[null,1,55]
[null,2,51]
[null,3,62]

{"sheet":"IV poziom","index":6,"n_rows":6,"n_cols":3,"rows_kept":6,"cut":false,"hidden":true,"merged":[]}
[]
[]
[null,"Lp","Wartość"]
[null,1,55]
[null,2,51]
[null,3,62]

{"sheet":"PodsumowanieVIII","index":7,"n_rows":16,"n_cols":8,"rows_kept":16,"cut":false,"hidden":true,"merged":[[2,7,2,17],[2,5,2,6]]}
[]
[]
[null,null,null,null,null,"Wynik testu:",null,"P90 >= 0,75*Limit: Brak możliwości zmniejszenia częstotliwości monitorowania emisji"]
[]
[null,"Lp.","Wynik pomiaru","P90","0,75*Limit"]
[null,1,{"$f":"Arkusz7!F3","v":55},{"$f":"Arkusz7!$F$16","v":62},{"$f":"Arkusz7!$F$17","v":7.500000000000001E-6}]
[null,2,{"$f":"Arkusz7!F4","v":45},{"$f":"Arkusz7!$F$16","v":62},{"$f":"Arkusz7!$F$17","v":7.500000000000001E-6}]
[null,3,{"$f":"Arkusz7!F5","v":62},{"$f":"Arkusz7!$F$16","v":62},{"$f":"Arkusz7!$F$17","v":7.500000000000001E-6}]
[null,4,{"$f":"Arkusz7!F6","v":52},{"$f":"Arkusz7!$F$16","v":62},{"$f":"Arkusz7!$F$17","v":7.500000000000001E-6}]
[null,5,{"$f":"Arkusz7!F7","v":44},{"$f":"Arkusz7!$F$16","v":62},{"$f":"Arkusz7!$F$17","v":7.500000000000001E-6}]
[null,6,{"$f":"Arkusz7!F8","v":56},{"$f":"Arkusz7!$F$16","v":62},{"$f":"Arkusz7!$F$17","v":7.500000000000001E-6}]
[null,7,{"$f":"Arkusz7!F9","v":58},{"$f":"Arkusz7!$F$16","v":62},{"$f":"Arkusz7!$F$17","v":7.500000000000001E-6}]
[null,8,{"$f":"Arkusz7!F10","v":59},{"$f":"Arkusz7!$F$16","v":62},{"$f":"Arkusz7!$F$17","v":7.500000000000001E-6}]
[null,9,{"$f":"Arkusz7!F11","v":62},{"$f":"Arkusz7!$F$16","v":62},{"$f":"Arkusz7!$F$17","v":7.500000000000001E-6}]
[null,10,{"$f":"Arkusz7!F12","v":47},{"$f":"Arkusz7!$F$16","v":62},{"$f":"Arkusz7!$F$17","v":7.500000000000001E-6}]
[null,11,{"$f":"Arkusz7!F13","v":58},{"$f":"Arkusz7!$F$16","v":62},{"$f":"Arkusz7!$F$17","v":7.500000000000001E-6}]

{"sheet":"PodsumowanieVII","index":8,"n_rows":11,"n_cols":8,"rows_kept":11,"cut":false,"hidden":true,"merged":[[2,5,2,6],[2,7,2,17]]}
[]
[]
[null,null,null,null,null,"Wynik testu:",null,"ULP(95%)95% < Limit: Możliwość zmniejszenia częstotliwości monitorowania emisji"]
[]
[null,"Lp.","Wynik pomiaru","ULP(95%)95%","Limit"]
[null,1,{"$f":"Arkusz7!I3","v":55},{"$f":"Arkusz7!$I$19","v":105.38175030572599},{"$f":"Arkusz7!$C$2","v":1.0000000000000001E-5}]
[null,2,{"$f":"Arkusz7!I4","v":51},{"$f":"Arkusz7!$I$19","v":105.38175030572599},{"$f":"Arkusz7!$C$2","v":1.0000000000000001E-5}]
[null,3,{"$f":"Arkusz7!I5","v":62},{"$f":"Arkusz7!$I$19","v":105.38175030572599},{"$f":"Arkusz7!$C$2","v":1.0000000000000001E-5}]
[null,4,{"$f":"Arkusz7!I6","v":52},{"$f":"Arkusz7!$I$19","v":105.38175030572599},{"$f":"Arkusz7!$C$2","v":1.0000000000000001E-5}]
[null,5,{"$f":"Arkusz7!I7","v":44},{"$f":"Arkusz7!$I$19","v":105.38175030572599},{"$f":"Arkusz7!$C$2","v":1.0000000000000001E-5}]
[null,6,{"$f":"Arkusz7!I8","v":56},{"$f":"Arkusz7!$I$19","v":105.38175030572599},{"$f":"Arkusz7!$C$2","v":1.0000000000000001E-5}]

{"sheet":"VII poziomW","index":9,"n_rows":9,"n_cols":3,"rows_kept":9,"cut":false,"hidden":true,"merged":[]}
[]
[]
[null,"Lp","Wartość"]
[null,1,150]
[null,2,120]
[null,3,110]
[null,4,100]
[null,5,115]
[null,6,130]

{"sheet":"VI poziomW","index":10,"n_rows":7,"n_cols":3,"rows_kept":7,"cut":false,"hidden":true,"merged":[]}
[]
[]
[null,"Lp","Wartość"]
[null,1,50]
[null,2,48]
[null,3,70]
[null,4,65]

{"sheet":"V poziomW","index":11,"n_rows":6,"n_cols":3,"rows_kept":6,"cut":false,"hidden":true,"merged":[]}
[]
[]
[null,"Lp","Wartość"]
[null,1,5]
[null,2,5.5]
[null,3,5.4]

{"sheet":"IV poziomW","index":12,"n_rows":6,"n_cols":3,"rows_kept":6,"cut":false,"hidden":true,"merged":[]}
[]
[]
[null,"Lp","Wartość"]
[null,1,55]
[null,2,51]
[null,3,62]

{"sheet":"III poziomW","index":13,"n_rows":6,"n_cols":3,"rows_kept":6,"cut":false,"hidden":true,"merged":[]}
[]
[]
[null,"Lp","Wartość"]
[null,1,150]
[null,2,160]
[null,3,155]

{"sheet":"PodsumowanieV","index":14,"n_rows":8,"n_cols":8,"rows_kept":8,"cut":false,"hidden":true,"merged":[[2,5,2,6],[2,7,2,17]]}
[]
[]
[null,null,null,null,null,"Wynik testu:",null,"ULP(95%)95% >= Limit: Brak możliwości zmniejszenia częstotliwości monitorowania emisji"]
[]
[null,"Lp.","Wynik pomiaru","ULP(95%)95%","Limit"]
[null,1,{"$f":"Arkusz7!O3","v":55},{"$f":"Arkusz7!$O$19","v":167.76098969416353},{"$f":"Arkusz7!$C$2","v":1.0000000000000001E-5}]
[null,2,{"$f":"Arkusz7!O4","v":51},{"$f":"Arkusz7!$O$19","v":167.76098969416353},{"$f":"Arkusz7!$C$2","v":1.0000000000000001E-5}]
[null,3,{"$f":"Arkusz7!O5","v":62},{"$f":"Arkusz7!$O$19","v":167.76098969416353},{"$f":"Arkusz7!$C$2","v":1.0000000000000001E-5}]

{"sheet":"Arkusz7","index":15,"n_rows":786,"n_cols":33,"rows_kept":786,"cut":false,"hidden":true,"merged":[[1,25,1,26],[15,3,18,3],[22,3,31,3]]}
[null,null,null,null,8,null,null,7,null,null,null,"raz dziennie",null,5,null,null,4,null,null,"Nowo dodane co 12 mscy III poziom",null,null,null,null,"Tabela f",null,null,null,null,null,"raz na kwartał"]
[null,"Limit",1.0000000000000001E-5,null,"Lp","Wartość",null,"Lp","Wartość",null,null,null,null,"Lp","Wartość",null,"Lp","Wartość",null,"Lp","Wartość",null,null,null,"Liczba stopni swobody ","Poziom ufności (1-α)",null,null,null,null,"Lp","Wartość"]
[null,null,null,null,1,{"$f":"'VIII poziom'!C4","v":55},null,1,{"$f":"'VII poziom'!C4","v":55},null,null,null,null,1,{"$f":"'V poziom'!C4","v":55},null,1,{"$f":"'IV poziom'!C4","v":55},null,1,{"$f":"'III poziom'!C4","v":125},null,null,null,"k=n-1",0.9,0.95,null,null,null,1,{"$f":"'VI poziom'!C4","v":50}]
[null,null,null,null,2,{"$f":"'VIII poziom'!C5","v":45},null,2,{"$f":"'VII poziom'!C5","v":51},null,null,null,null,2,{"$f":"'V poziom'!C5","v":51},null,2,{"$f":"'IV poziom'!C5","v":51},null,2,{"$f":"'III poziom'!C5","v":150},null,null,null,2,1.64,2.2999999999999998,null,null,null,2,{"$f":"'VI poziom'!C5","v":120}]
[null,null,null,null,3,{"$f":"'VIII poziom'!C6","v":62},null,3,{"$f":"'VII poziom'!C6","v":62},null,null,null,null,3,{"$f":"'V poziom'!C6","v":62},null,3,{"$f":"'IV poziom'!C6","v":62},null,3,{"$f":"'III poziom'!C6","v":300},null,null,null,3,1.49,2.0699999999999998,null,null,null,3,{"$f":"'VI poziom'!C6","v":60}]
[null,null,null,null,4,{"$f":"'VIII poziom'!C7","v":52},null,4,{"$f":"'VII poziom'!C7","v":52},null,null,null,null,null,null,null,null,null,null,null,null,null,null,null,4,1.37,1.88,null,null,null,4,{"$f":"'VI poziom'!C7","v":65}]
[null,null,null,null,5,{"$f":"'VIII poziom'!C8","v":44},null,5,{"$f":"'VII poziom'!C8","v":44},null,null,null,null,null,null,null,null,null,null,null,null,null,null,null,5,1.28,1.75]
[null,null,null,null,6,{"$f":"'VIII poziom'!C9","v":56},null,6,{"$f":"'VII poziom'!C9","v":56},null,null,null,null,null,null,null,null,null,null,null,null,null,null,null,6,1.2,1.65]
[null,null,null,null,7,{"$f":"'VIII poziom'!C10","v":58},null,null,null,null,null,null,null,null,null,null,null,null,null,null,null,null,null,null,7,1.1399999999999999,1.56]
[null,null,null,null,8,{"$f":"'VIII poziom'!C11","v":59},null,"k=n-1",{"$f":"COUNT(TabelaVII[Wartość])-1","v":5},null,null,{"$f":"COUNT(TabelaVI[Wartość])-1","v":95},null,null,{"$f":"COUNT(TabelaV[Wartość])-1","v":2},null,null,{"$f":"COUNT(TabelaIV[Wartość])-1","v":2},null,null,{"$f":"COUNT(TabelaIIIW[Wartość])-1","v":2},null,null,null,8,1.0900000000000001,1.49,null,null,null,null,{"$f":"COUNT(Tabela31821[Wartość])-1","v":3}]
[null,null,null,null,9,{"$f":"'VIII poziom'!C12","v":62},null,null,null,null,null,null,null,null,null,null,null,null,null,null,null,null,null,null,9,1.06,1.41]
[null,null,null,null,10,{"$f":"'VIII poziom'!C13","v":47},null,null,null,null,null,null,null,null,null,null,null,null,null,null,null,null,null,null,10,1.04,1.34]
[null,null,null,null,11,{"$f":"'VIII poziom'!C14","v":58}]
[]
[]
[null,null,null,"pierwszy test","P90",{"$f":"_xlfn.PERCENTILE.INC(Arkusz7!$F$3:$F$13,0.9)","v":62},null,"xśr",{"$f":"AVERAGE(TabelaVII[Wartość])","v":53.333333333333336},null,"P90",{"$f":"_xlfn.PERCENTILE.INC(TabelaVI[Wartość],0.9)","v":160},null,"xśr",{"$f":"AVERAGE(TabelaV[Wartość])","v":56},null,"xśr",{"$f":"AVERAGE(TabelaIV[Wartość])","v":56},null,"xśr",{"$f":"AVERAGE(TabelaIV27[Wartość])","v":191.66666666666666},null,null,null,null,null,null,null,null,null,"xśr",{"$f":"AVERAGE(Tabela31821[Wartość])","v":73.75}]
[null,null,null,null,"0,75LIMIT",{"$f":"0.75*C2","v":7.500000000000001E-6},null,"sn-1",{"$f":"_xlfn.STDEV.S(TabelaVII[Wartość])","v":5.9888785817268353},null,"0,75LIMIT",{"$f":"0.75*C2","v":7.500000000000001E-6},null,"sn-1",{"$f":"_xlfn.STDEV.S(TabelaV[Wartość])","v":5.5677643628300215},null,"sn-1",{"$f":"_xlfn.STDEV.S(TabelaIV[Wartość])","v":5.5677643628300215},null,"sn-1",{"$f":"_xlfn.STDEV.S(TabelaIV27[Wartość])","v":94.648472430004574},null,null,null,null,null,null,null,null,null,"sn-1",{"$f":"_xlfn.STDEV.S(Tabela31821[Wartość])","v":31.457643480294792}]
[null,null,null,null,null,null,null,"ta/2,k",{"$f":"_xlfn.T.INV.2T(0.05,I10)","v":2.570581835636315},null,null,null,null,"ta/2,k",{"$f":"_xlfn.T.INV.2T(0.05,O10)","v":4.3026527297494637},null,"ta/2,k",{"$f":"_xlfn.T.INV.2T(0.05,R10)","v":4.3026527297494637},null,"ta/2,k",{"$f":"_xlfn.T.INV.2T(0.05,U10)","v":4.3026527297494637},null,null,null,null,null,null,null,null,null,"ta/2,k",{"$f":"_xlfn.T.INV.2T(0.05,AF10)","v":3.1824463052837091}]
[null,null,null,null,null,null,null,"ULP95(95)",{"$f":"(I16+I18*I17/SQRT(I10))*AA7","v":105.38175030572599},null,null,null,null,"ULP95(95)",{"$f":"(O16+O18*O17/SQRT(O10))*AA4","v":167.76098969416353},null,"ULP95(95)",{"$f":"(R16+R18*R17/SQRT(R10))*AA4","v":167.76098969416353},null,"ULP95(95)",{"$f":"(U16+U18*U17/SQRT(U10))*AA4","v":1103.1455144184126},null,null,null,null,null,null,null,null,null,"ULP95(95)",{"$f":"(AF16+AF18*AF17/SQRT(AF10))*AA5","v":272.3081708525437}]
[]
[]
[]
[null,null,null,"po roku","P90",{"$f":"_xlfn.PERCENTILE.INC(Tabela16[Wartość],0.9)","v":62},null,"xśr",{"$f":"AVERAGE(TabelaVIIW[Wartość])","v":120.83333333333333},null,"xśr",{"$f":"AVERAGE(TabelaVIW[Wartość])","v":58.25},null,"xśr",{"$f":"AVERAGE(TabelaVW[Wartość])","v":5.3},null,"xśr",{"$f":"AVERAGE(TabelaIVW[Wartość])","v":56},null,"xśr",{"$f":"AVERAGE(TabelaIIIW[Wartość])","v":155}]
[null,null,null,null,"Limit",{"$f":"C2","v":1.0000000000000001E-5},null,"sn-1",{"$f":"_xlfn.STDEV.S(TabelaVIIW[Wartość])","v":17.440374613713598},null,"sn-1",{"$f":"_xlfn.STDEV.S(TabelaVIW[Wartość])","v":10.90489186863706},null,"sn-1",{"$f":"_xlfn.STDEV.S(TabelaVW[Wartość])","v":0.26457513110645914},null,"sn-1",{"$f":"_xlfn.STDEV.S(TabelaIVW[Wartość])","v":5.5677643628300215},null,"sn-1",{"$f":"_xlfn.STDEV.S(TabelaIIIW[Wartość])","v":5}]
[null,null,null,null,"0,9Limit",{"$f":"0.9*F24","v":9.0000000000000002E-6},null,"ta/2,k",{"$f":"_xlfn.T.INV.2T(0.1,$I$10)","v":2.0150483733330233},null,"ta/2,k",{"$f":"_xlfn.T.INV.2T(0.1,$L$10)","v":1.6610518172772404},null,"ta/2,k",{"$f":"_xlfn.T.INV.2T(0.1,$O$10)","v":2.9199855803537269},null,"ta/2,k",{"$f":"_xlfn.T.INV.2T(0.1,$R$10)","v":2.9199855803537269},null,"ta/2,k",{"$f":"_xlfn.T.INV.2T(0.1,$R$10)","v":2.9199855803537269}]
[null,null,null,null,"0,75Limit",{"$f":"0.75*F24","v":7.500000000000001E-6},null,"ULP95(90)",{"$f":"(I23+I25*I24/SQRT(I10))*Z7","v":174.78380734714375},null,"ULP95(90)",{"$f":"(L23+L25*L24/SQRT(L41))*Z5","v":102.37475062505143},null,"ULP95(90)",{"$f":"(O23+O25*O24/SQRT(O10))*Z4","v":9.5878980205123199},null,"ULP95(90)",{"$f":"(R23+R25*R24/SQRT(R10))*Z4","v":110.69343135039907},null,"ULP95(90)",{"$f":"(U23+U25*U24/SQRT(U10))*Z4","v":271.13088115964746}]
[]
[]
[null,null,null,null,null,null,null,"xśr",{"$f":"AVERAGE(TabelaVIIW[Wartość])","v":120.83333333333333},null,"xśr",{"$f":"AVERAGE(TabelaVIW[Wartość])","v":58.25},null,"xśr",{"$f":"AVERAGE(TabelaVW[Wartość])","v":5.3},null,"xśr",{"$f":"AVERAGE(TabelaIVW[Wartość])","v":56},null,"xśr",{"$f":"AVERAGE(TabelaIIIW[Wartość])","v":155}]
[null,null,null,null,null,null,null,"sn-1",{"$f":"_xlfn.STDEV.S(TabelaVIIW[Wartość])","v":17.440374613713598},null,"sn-1",{"$f":"_xlfn.STDEV.S(TabelaVIW[Wartość])","v":10.90489186863706},null,"sn-1",{"$f":"_xlfn.STDEV.S(TabelaVW[Wartość])","v":0.26457513110645914},null,"sn-1",{"$f":"_xlfn.STDEV.S(TabelaIVW[Wartość])","v":5.5677643628300215},null,"sn-1",{"$f":"_xlfn.STDEV.S(TabelaIIIW[Wartość])","v":5}]
[null,null,null,null,null,null,null,"ta/2,k",{"$f":"_xlfn.T.INV.2T(0.05,$I$10)","v":2.570581835636315},null,"ta/2,k",{"$f":"_xlfn.T.INV.2T(0.05,$L$10)","v":1.9852510035054973},null,"ta/2,k",{"$f":"_xlfn.T.INV.2T(0.05,$O$10)","v":4.3026527297494637},null,"ta/2,k",{"$f":"_xlfn.T.INV.2T(0.05,$R$10)","v":4.3026527297494637},null,"ta/2,k",{"$f":"_xlfn.T.INV.2T(0.05,$R$10)","v":4.3026527297494637}]
[null,null,null,null,null,null,null,"ULP95(95)",{"$f":"(I29+I31*I30/SQRT(I10))*AA7","v":246.54485289342165},null,"ULP95(95)",{"$f":"(L29+L31*L30/SQRT(L41))*AA5","v":146.450483160543},null,"ULP95(95)",{"$f":"(O29+O31*O30/SQRT(O10))*AA4","v":14.041391022433865},null,"ULP95(95)",{"$f":"(R29+R31*R30/SQRT(R10))*AA4","v":167.76098969416353},null,"ULP95(95)",{"$f":"(U29+U31*U30/SQRT(U10))*AA4","v":391.4880016064115}]
[]
[]
[null,null,null,null,"Lp","Wartość",null,"Lp","Wartość",null,"Lp","Wartość",null,"Lp","Wartość",null,"Lp","Wartość",null,"Lp","Wartość"]
[null,null,null,null,{"$f":"'VIII poziomW'!B4","v":1},{"$f":"'VIII poziomW'!C4","v":55},null,1,{"$f":"'VII poziomW'!C4","v":150},null,1,{"$f":"'VI poziomW'!C4","v":50},null,1,{"$f":"'V poziomW'!C4","v":5},null,1,{"$f":"'IV poziomW'!C4","v":55},null,1,{"$f":"'III poziomW'!C4","v":150}]
[null,null,null,null,{"$f":"'VIII poziomW'!B5","v":2},{"$f":"'VIII poziomW'!C5","v":45},null,2,{"$f":"'VII poziomW'!C5","v":120},null,2,{"$f":"'VI poziomW'!C5","v":48},null,2,{"$f":"'V poziomW'!C5","v":5.5},null,2,{"$f":"'IV poziomW'!C5","v":51},null,2,{"$f":"'III poziomW'!C5","v":160}]
[null,null,null,null,{"$f":"'VIII poziomW'!B6","v":3},{"$f":"'VIII poziomW'!C6","v":62},null,3,{"$f":"'VII poziomW'!C6","v":110},null,3,{"$f":"'VI poziomW'!C6","v":70},null,3,{"$f":"'V poziomW'!C6","v":5.4},null,3,{"$f":"'IV poziomW'!C6","v":62},null,3,{"$f":"'III poziomW'!C6","v":155}]
[null,null,null,null,{"$f":"'VIII poziomW'!B7","v":4},{"$f":"'VIII poziomW'!C7","v":52},null,4,{"$f":"'VII poziomW'!C7","v":100},null,4,{"$f":"'VI poziomW'!C7","v":65}]
[null,null,null,null,{"$f":"'VIII poziomW'!B8","v":5},{"$f":"'VIII poziomW'!C8","v":44},null,5,{"$f":"'VII poziomW'!C8","v":115}]
[null,null,null,null,{"$f":"'VIII poziomW'!B9","v":6},{"$f":"'VIII poziomW'!C9","v":56},null,6,{"$f":"'VII poziomW'!C9","v":130},null,null,{"$f":"3","v":3}]
[null,null,null,null,{"$f":"'VIII poziomW'!B10","v":7},{"$f":"'VIII poziomW'!C10","v":58}]
[null,null,null,null,{"$f":"'VIII poziomW'!B11","v":8},{"$f":"'VIII poziomW'!C11","v":59}]
[null,null,null,null,{"$f":"'VIII poziomW'!B12","v":9},{"$f":"'VIII poziomW'!C12","v":64}]
[null,null,null,null,{"$f":"'VIII poziomW'!B13","v":10},{"$f":"'VIII poziomW'!C13","v":47}]
[null,null,null,null,{"$f":"'VIII poziomW'!B14","v":11},{"$f":"'VIII poziomW'!C14","v":58}]
[]
[]
[]
[]
[]
[]
[]
[]
[]
[]
[]
[]
[]
[]
[]
[]
[]
[]
[]
[]
[]
[]
[]
[]
[]
[]
[]
[]
[]
[]
[]
[]
[]
[]
[]
[]
[]
[]
[]
[]
[]
[]
[]
[]
[]
[]
[]
[]
[]
[]
[]
[]
[]
[]
[]
[]
[]
[]
[]
[]
[]
[]
[]
[]
[]
[]
[]
[]
[]
[]
[]
[]
[]
[]
[]
[]
[]
[]
[]
[]
[]
[]
[]
[]
[]
[]
[]
[]
[]
[]
[]
[]
[]
[]
[]
[]
[]
[]
[]
[]
[]
[]
[]
[]
[]
[]
[]
[]
[]
[]
[]
[]
[]
[]
[]
[]
[]
[]
[]
[]
[]
[]
[]
[]
[]
[]
[]
[]
[]
[]
[]
[]
[]
[]
[]
[]
[]
[]
[]
[]
[]
[]
[]
[]
[]
[]
[]
[]
[]
[]
[]
[]
[]
[]
[]
[]
[]
[]
[]
[]
[]
[]
[]
[]
[]
[]
[]
[]
[]
[]
[]
[]
[]
[]
[]
[]
[]
[]
[]
[]
[]
[]
[]
[]
[]
[]
[]
[]
[]
[]
[]
[]
[]
[]
[]
[]
[]
[]
[]
[]
[]
[]
[]
[]
[]
[]
[]
[]
[]
[]
[]
[]
[]
[]
[]
[]
[]
[]
[]
[]
[]
[]
[]
[]
[]
[]
[]
[]
[]
[]
[]
[]
[]
[]
[]
[]
[]
[]
[]
[]
[]
[]
[]
[]
[]
[]
[]
[]
[]
[]
[]
[]
[]
[]
[]
[]
[]
[]
[]
[]
[]
[]
[]
[]
[]
[]
[]
[]
[]
[]
[]
[]
[]
[]
[]
[]
[]
[]
[]
[]
[]
[]
[]
[]
[]
[]
[]
[]
[]
[]
[]
[]
[]
[]
[]
[]
[]
[]
[]
[]
[]
[]
[]
[]
[]
[]
[]
[]
[]
[]
[]
[]
[]
[]
[]
[]
[]
[]
[]
[]
[]
[]
[]
[]
[]
[]
[]
[]
[]
[]
[]
[]
[]
[]
[]
[]
[]
[]
[]
[]
[]
[]
[]
[]
[]
[]
[]
[]
[]
[]
[]
[]
[]
[]
[]
[]
[]
[]
[]
[]
[]
[]
[]
[]
[]
[]
[]
[]
[]
[]
[]
[]
[null,null,null,null,null,null,null,null,null,null,null,null,null,null,null,null,null,null,null,null,null,null,null,null,null,null,null,null,null,null,null,{"$f":"COUNT(TabelaVI[Wartość])","v":96}]
[null,null,null,null,null,null,null,null,null,null,null,null,null,null,null,null,null,null,null,null,null,null,null,null,null,null,null,null,null,null,"Lp","Wartość","Kolumna1"]
[null,null,null,null,null,null,null,null,null,null,null,null,null,null,null,null,null,null,null,null,null,null,null,null,null,null,null,null,null,null,1,500]
[null,null,null,null,null,null,null,null,null,null,null,null,null,null,null,null,null,null,null,null,null,null,null,null,null,null,null,null,null,null,2,100]
[null,null,null,null,null,null,null,null,null,null,null,null,null,null,null,null,null,null,null,null,null,null,null,null,null,null,null,null,null,null,3,30]
[null,null,null,null,null,null,null,null,null,null,null,null,null,null,null,null,null,null,null,null,null,null,null,null,null,null,null,null,null,null,4,25]
[null,null,null,null,null,null,null,null,null,null,null,null,null,null,null,null,null,null,null,null,null,null,null,null,null,null,null,null,null,null,5,30]
[null,null,null,null,null,null,null,null,null,null,null,null,null,null,null,null,null,null,null,null,null,null,null,null,null,null,null,null,null,null,6,74]
[null,null,null,null,null,null,null,null,null,null,null,null,null,null,null,null,null,null,null,null,null,null,null,null,null,null,null,null,null,null,7,1000]
[null,null,null,null,null,null,null,null,null,null,null,null,null,null,null,null,null,null,null,null,null,null,null,null,null,null,null,null,null,null,8,55]
[null,null,null,null,null,null,null,null,null,null,null,null,null,null,null,null,null,null,null,null,null,null,null,null,null,null,null,null,null,null,9,115]
[null,null,null,null,null,null,null,null,null,null,null,null,null,null,null,null,null,null,null,null,null,null,null,null,null,null,null,null,null,null,10,135]
[null,null,null,null,null,null,null,null,null,null,null,null,null,null,null,null,null,null,null,null,null,null,null,null,null,null,null,null,null,null,11,120]
[null,null,null,null,null,null,null,null,null,null,null,null,null,null,null,null,null,null,null,null,null,null,null,null,null,null,null,null,null,null,12,160]
[null,null,null,null,null,null,null,null,null,null,null,null,null,null,null,null,null,null,null,null,null,null,null,null,null,null,null,null,null,null,13,105]
[null,null,null,null,null,null,null,null,null,null,null,null,null,null,null,null,null,null,null,null,null,null,null,null,null,null,null,null,null,null,14,115]
[null,null,null,null,null,null,null,null,null,null,null,null,null,null,null,null,null,null,null,null,null,null,null,null,null,null,null,null,null,null,15,130]
[null,null,null,null,null,null,null,null,null,null,null,null,null,null,null,null,null,null,null,null,null,null,null,null,null,null,null,null,null,null,16,140]
[null,null,null,null,null,null,null,null,null,null,null,null,null,null,null,null,null,null,null,null,null,null,null,null,null,null,null,null,null,null,17,150]
[null,null,null,null,null,null,null,null,null,null,null,null,null,null,null,null,null,null,null,null,null,null,null,null,null,null,null,null,null,null,18,160]
[null,null,null,null,null,null,null,null,null,null,null,null,null,null,null,null,null,null,null,null,null,null,null,null,null,null,null,null,null,null,19,105]
[null,null,null,null,null,null,null,null,null,null,null,null,null,null,null,null,null,null,null,null,null,null,null,null,null,null,null,null,null,null,20,115]
[null,null,null,null,null,null,null,null,null,null,null,null,null,null,null,null,null,null,null,null,null,null,null,null,null,null,null,null,null,null,21,125]
[null,null,null,null,null,null,null,null,null,null,null,null,null,null,null,null,null,null,null,null,null,null,null,null,null,null,null,null,null,null,22,135]
[null,null,null,null,null,null,null,null,null,null,null,null,null,null,null,null,null,null,null,null,null,null,null,null,null,null,null,null,null,null,23,100]
[null,null,null,null,null,null,null,null,null,null,null,null,null,null,null,null,null,null,null,null,null,null,null,null,null,null,null,null,null,null,24,150]
[null,null,null,null,null,null,null,null,null,null,null,null,null,null,null,null,null,null,null,null,null,null,null,null,null,null,null,null,null,null,25,160]
[null,null,null,null,null,null,null,null,null,null,null,null,null,null,null,null,null,null,null,null,null,null,null,null,null,null,null,null,null,null,26,105]
[null,null,null,null,null,null,null,null,null,null,null,null,null,null,null,null,null,null,null,null,null,null,null,null,null,null,null,null,null,null,27,115]
[null,null,null,null,null,null,null,null,null,null,null,null,null,null,null,null,null,null,null,null,null,null,null,null,null,null,null,null,null,null,28,125]
[null,null,null,null,null,null,null,null,null,null,null,null,null,null,null,null,null,null,null,null,null,null,null,null,null,null,null,null,null,null,29,135]
[null,null,null,null,null,null,null,null,null,null,null,null,null,null,null,null,null,null,null,null,null,null,null,null,null,null,null,null,null,null,30,100]
[null,null,null,null,null,null,null,null,null,null,null,null,null,null,null,null,null,null,null,null,null,null,null,null,null,null,null,null,null,null,31,110]
[null,null,null,null,null,null,null,null,null,null,null,null,null,null,null,null,null,null,null,null,null,null,null,null,null,null,null,null,null,null,32,120]
[null,null,null,null,null,null,null,null,null,null,null,null,null,null,null,null,null,null,null,null,null,null,null,null,null,null,null,null,null,null,33,130]
[null,null,null,null,null,null,null,null,null,null,null,null,null,null,null,null,null,null,null,null,null,null,null,null,null,null,null,null,null,null,34,140]
[null,null,null,null,null,null,null,null,null,null,null,null,null,null,null,null,null,null,null,null,null,null,null,null,null,null,null,null,null,null,35,150]
[null,null,null,null,null,null,null,null,null,null,null,null,null,null,null,null,null,null,null,null,null,null,null,null,null,null,null,null,null,null,36,160]
[null,null,null,null,null,null,null,null,null,null,null,null,null,null,null,null,null,null,null,null,null,null,null,null,null,null,null,null,null,null,37,105]
[null,null,null,null,null,null,null,null,null,null,null,null,null,null,null,null,null,null,null,null,null,null,null,null,null,null,null,null,null,null,38,115]
[null,null,null,null,null,null,null,null,null,null,null,null,null,null,null,null,null,null,null,null,null,null,null,null,null,null,null,null,null,null,39,125]
[null,null,null,null,null,null,null,null,null,null,null,null,null,null,null,null,null,null,null,null,null,null,null,null,null,null,null,null,null,null,40,135]
[null,null,null,null,null,null,null,null,null,null,null,null,null,null,null,null,null,null,null,null,null,null,null,null,null,null,null,null,null,null,41,100]
[null,null,null,null,null,null,null,null,null,null,null,null,null,null,null,null,null,null,null,null,null,null,null,null,null,null,null,null,null,null,42,110]
[null,null,null,null,null,null,null,null,null,null,null,null,null,null,null,null,null,null,null,null,null,null,null,null,null,null,null,null,null,null,43,120]
[null,null,null,null,null,null,null,null,null,null,null,null,null,null,null,null,null,null,null,null,null,null,null,null,null,null,null,null,null,null,44,130]
[null,null,null,null,null,null,null,null,null,null,null,null,null,null,null,null,null,null,null,null,null,null,null,null,null,null,null,null,null,null,45,140]
[null,null,null,null,null,null,null,null,null,null,null,null,null,null,null,null,null,null,null,null,null,null,null,null,null,null,null,null,null,null,46,150]
[null,null,null,null,null,null,null,null,null,null,null,null,null,null,null,null,null,null,null,null,null,null,null,null,null,null,null,null,null,null,47,160]
[null,null,null,null,null,null,null,null,null,null,null,null,null,null,null,null,null,null,null,null,null,null,null,null,null,null,null,null,null,null,48,105]
[null,null,null,null,null,null,null,null,null,null,null,null,null,null,null,null,null,null,null,null,null,null,null,null,null,null,null,null,null,null,49,115]
[null,null,null,null,null,null,null,null,null,null,null,null,null,null,null,null,null,null,null,null,null,null,null,null,null,null,null,null,null,null,50,125]
[null,null,null,null,null,null,null,null,null,null,null,null,null,null,null,null,null,null,null,null,null,null,null,null,null,null,null,null,null,null,51,135]
[null,null,null,null,null,null,null,null,null,null,null,null,null,null,null,null,null,null,null,null,null,null,null,null,null,null,null,null,null,null,52,100]
[null,null,null,null,null,null,null,null,null,null,null,null,null,null,null,null,null,null,null,null,null,null,null,null,null,null,null,null,null,null,53,110]
[null,null,null,null,null,null,null,null,null,null,null,null,null,null,null,null,null,null,null,null,null,null,null,null,null,null,null,null,null,null,54,120]
[null,null,null,null,null,null,null,null,null,null,null,null,null,null,null,null,null,null,null,null,null,null,null,null,null,null,null,null,null,null,55,130]
[null,null,null,null,null,null,null,null,null,null,null,null,null,null,null,null,null,null,null,null,null,null,null,null,null,null,null,null,null,null,56,140]
[null,null,null,null,null,null,null,null,null,null,null,null,null,null,null,null,null,null,null,null,null,null,null,null,null,null,null,null,null,null,57,150]
[null,null,null,null,null,null,null,null,null,null,null,null,null,null,null,null,null,null,null,null,null,null,null,null,null,null,null,null,null,null,58,160]
[null,null,null,null,null,null,null,null,null,null,null,null,null,null,null,null,null,null,null,null,null,null,null,null,null,null,null,null,null,null,59,105]
[null,null,null,null,null,null,null,null,null,null,null,null,null,null,null,null,null,null,null,null,null,null,null,null,null,null,null,null,null,null,60,115]
[null,null,null,null,null,null,null,null,null,null,null,null,null,null,null,null,null,null,null,null,null,null,null,null,null,null,null,null,null,null,61,125]
[null,null,null,null,null,null,null,null,null,null,null,null,null,null,null,null,null,null,null,null,null,null,null,null,null,null,null,null,null,null,62,135]
[null,null,null,null,null,null,null,null,null,null,null,null,null,null,null,null,null,null,null,null,null,null,null,null,null,null,null,null,null,null,63,100]
[null,null,null,null,null,null,null,null,null,null,null,null,null,null,null,null,null,null,null,null,null,null,null,null,null,null,null,null,null,null,64,110]
[null,null,null,null,null,null,null,null,null,null,null,null,null,null,null,null,null,null,null,null,null,null,null,null,null,null,null,null,null,null,65,120]
[null,null,null,null,null,null,null,null,null,null,null,null,null,null,null,null,null,null,null,null,null,null,null,null,null,null,null,null,null,null,66,130]
[null,null,null,null,null,null,null,null,null,null,null,null,null,null,null,null,null,null,null,null,null,null,null,null,null,null,null,null,null,null,67,140]
[null,null,null,null,null,null,null,null,null,null,null,null,null,null,null,null,null,null,null,null,null,null,null,null,null,null,null,null,null,null,68,150]
[null,null,null,null,null,null,null,null,null,null,null,null,null,null,null,null,null,null,null,null,null,null,null,null,null,null,null,null,null,null,69,160]
[null,null,null,null,null,null,null,null,null,null,null,null,null,null,null,null,null,null,null,null,null,null,null,null,null,null,null,null,null,null,70,105]
[null,null,null,null,null,null,null,null,null,null,null,null,null,null,null,null,null,null,null,null,null,null,null,null,null,null,null,null,null,null,71,115]
[null,null,null,null,null,null,null,null,null,null,null,null,null,null,null,null,null,null,null,null,null,null,null,null,null,null,null,null,null,null,72,125]
[null,null,null,null,null,null,null,null,null,null,null,null,null,null,null,null,null,null,null,null,null,null,null,null,null,null,null,null,null,null,73,135]
[null,null,null,null,null,null,null,null,null,null,null,null,null,null,null,null,null,null,null,null,null,null,null,null,null,null,null,null,null,null,74,100]
[null,null,null,null,null,null,null,null,null,null,null,null,null,null,null,null,null,null,null,null,null,null,null,null,null,null,null,null,null,null,75,110]
[null,null,null,null,null,null,null,null,null,null,null,null,null,null,null,null,null,null,null,null,null,null,null,null,null,null,null,null,null,null,76,120]
[null,null,null,null,null,null,null,null,null,null,null,null,null,null,null,null,null,null,null,null,null,null,null,null,null,null,null,null,null,null,77,130]
[null,null,null,null,null,null,null,null,null,null,null,null,null,null,null,null,null,null,null,null,null,null,null,null,null,null,null,null,null,null,78,140]
[null,null,null,null,null,null,null,null,null,null,null,null,null,null,null,null,null,null,null,null,null,null,null,null,null,null,null,null,null,null,79,150]
[null,null,null,null,null,null,null,null,null,null,null,null,null,null,null,null,null,null,null,null,null,null,null,null,null,null,null,null,null,null,80,160]
[null,null,null,null,null,null,null,null,null,null,null,null,null,null,null,null,null,null,null,null,null,null,null,null,null,null,null,null,null,null,81,105]
[null,null,null,null,null,null,null,null,null,null,null,null,null,null,null,null,null,null,null,null,null,null,null,null,null,null,null,null,null,null,82,115]
[null,null,null,null,null,null,null,null,null,null,null,null,null,null,null,null,null,null,null,null,null,null,null,null,null,null,null,null,null,null,83,125]
[null,null,null,null,null,null,null,null,null,null,null,null,null,null,null,null,null,null,null,null,null,null,null,null,null,null,null,null,null,null,84,135]
[null,null,null,null,null,null,null,null,null,null,null,null,null,null,null,null,null,null,null,null,null,null,null,null,null,null,null,null,null,null,85,100]
[null,null,null,null,null,null,null,null,null,null,null,null,null,null,null,null,null,null,null,null,null,null,null,null,null,null,null,null,null,null,86,110]
[null,null,null,null,null,null,null,null,null,null,null,null,null,null,null,null,null,null,null,null,null,null,null,null,null,null,null,null,null,null,87,120]
[null,null,null,null,null,null,null,null,null,null,null,null,null,null,null,null,null,null,null,null,null,null,null,null,null,null,null,null,null,null,88,130]
[null,null,null,null,null,null,null,null,null,null,null,null,null,null,null,null,null,null,null,null,null,null,null,null,null,null,null,null,null,null,89,140]
[null,null,null,null,null,null,null,null,null,null,null,null,null,null,null,null,null,null,null,null,null,null,null,null,null,null,null,null,null,null,90,150]
[null,null,null,null,null,null,null,null,null,null,null,null,null,null,null,null,null,null,null,null,null,null,null,null,null,null,null,null,null,null,91,160]
[null,null,null,null,null,null,null,null,null,null,null,null,null,null,null,null,null,null,null,null,null,null,null,null,null,null,null,null,null,null,92,105]
[null,null,null,null,null,null,null,null,null,null,null,null,null,null,null,null,null,null,null,null,null,null,null,null,null,null,null,null,null,null,93,115]
[null,null,null,null,null,null,null,null,null,null,null,null,null,null,null,null,null,null,null,null,null,null,null,null,null,null,null,null,null,null,94,125]
[null,null,null,null,null,null,null,null,null,null,null,null,null,null,null,null,null,null,null,null,null,null,null,null,null,null,null,null,null,null,95,135]
[null,null,null,null,null,null,null,null,null,null,null,null,null,null,null,null,null,null,null,null,null,null,null,null,null,null,null,null,null,null,96,100]
[null,null,null,null,null,null,null,null,null,null,null,null,null,null,null,null,null,null,null,null,null,null,null,null,null,null,null,null,null,null,97]
[null,null,null,null,null,null,null,null,null,null,null,null,null,null,null,null,null,null,null,null,null,null,null,null,null,null,null,null,null,null,98]
[null,null,null,null,null,null,null,null,null,null,null,null,null,null,null,null,null,null,null,null,null,null,null,null,null,null,null,null,null,null,99]
[null,null,null,null,null,null,null,null,null,null,null,null,null,null,null,null,null,null,null,null,null,null,null,null,null,null,null,null,null,null,100]
[null,null,null,null,null,null,null,null,null,null,null,null,null,null,null,null,null,null,null,null,null,null,null,null,null,null,null,null,null,null,101]
[null,null,null,null,null,null,null,null,null,null,null,null,null,null,null,null,null,null,null,null,null,null,null,null,null,null,null,null,null,null,102]
[null,null,null,null,null,null,null,null,null,null,null,null,null,null,null,null,null,null,null,null,null,null,null,null,null,null,null,null,null,null,103]
[null,null,null,null,null,null,null,null,null,null,null,null,null,null,null,null,null,null,null,null,null,null,null,null,null,null,null,null,null,null,104]
[null,null,null,null,null,null,null,null,null,null,null,null,null,null,null,null,null,null,null,null,null,null,null,null,null,null,null,null,null,null,105]
[null,null,null,null,null,null,null,null,null,null,null,null,null,null,null,null,null,null,null,null,null,null,null,null,null,null,null,null,null,null,106]
[null,null,null,null,null,null,null,null,null,null,null,null,null,null,null,null,null,null,null,null,null,null,null,null,null,null,null,null,null,null,107]
[null,null,null,null,null,null,null,null,null,null,null,null,null,null,null,null,null,null,null,null,null,null,null,null,null,null,null,null,null,null,108]
[null,null,null,null,null,null,null,null,null,null,null,null,null,null,null,null,null,null,null,null,null,null,null,null,null,null,null,null,null,null,109]
[null,null,null,null,null,null,null,null,null,null,null,null,null,null,null,null,null,null,null,null,null,null,null,null,null,null,null,null,null,null,110]
[null,null,null,null,null,null,null,null,null,null,null,null,null,null,null,null,null,null,null,null,null,null,null,null,null,null,null,null,null,null,111]
[null,null,null,null,null,null,null,null,null,null,null,null,null,null,null,null,null,null,null,null,null,null,null,null,null,null,null,null,null,null,112]
[null,null,null,null,null,null,null,null,null,null,null,null,null,null,null,null,null,null,null,null,null,null,null,null,null,null,null,null,null,null,113]
[null,null,null,null,null,null,null,null,null,null,null,null,null,null,null,null,null,null,null,null,null,null,null,null,null,null,null,null,null,null,114]
[null,null,null,null,null,null,null,null,null,null,null,null,null,null,null,null,null,null,null,null,null,null,null,null,null,null,null,null,null,null,115]
[null,null,null,null,null,null,null,null,null,null,null,null,null,null,null,null,null,null,null,null,null,null,null,null,null,null,null,null,null,null,116]
[null,null,null,null,null,null,null,null,null,null,null,null,null,null,null,null,null,null,null,null,null,null,null,null,null,null,null,null,null,null,117]
[null,null,null,null,null,null,null,null,null,null,null,null,null,null,null,null,null,null,null,null,null,null,null,null,null,null,null,null,null,null,118]
[null,null,null,null,null,null,null,null,null,null,null,null,null,null,null,null,null,null,null,null,null,null,null,null,null,null,null,null,null,null,119]
[null,null,null,null,null,null,null,null,null,null,null,null,null,null,null,null,null,null,null,null,null,null,null,null,null,null,null,null,null,null,120]
[null,null,null,null,null,null,null,null,null,null,null,null,null,null,null,null,null,null,null,null,null,null,null,null,null,null,null,null,null,null,121]
[null,null,null,null,null,null,null,null,null,null,null,null,null,null,null,null,null,null,null,null,null,null,null,null,null,null,null,null,null,null,122]
[null,null,null,null,null,null,null,null,null,null,null,null,null,null,null,null,null,null,null,null,null,null,null,null,null,null,null,null,null,null,123]
[null,null,null,null,null,null,null,null,null,null,null,null,null,null,null,null,null,null,null,null,null,null,null,null,null,null,null,null,null,null,124]
[null,null,null,null,null,null,null,null,null,null,null,null,null,null,null,null,null,null,null,null,null,null,null,null,null,null,null,null,null,null,125]
[null,null,null,null,null,null,null,null,null,null,null,null,null,null,null,null,null,null,null,null,null,null,null,null,null,null,null,null,null,null,126]
[null,null,null,null,null,null,null,null,null,null,null,null,null,null,null,null,null,null,null,null,null,null,null,null,null,null,null,null,null,null,127]
[null,null,null,null,null,null,null,null,null,null,null,null,null,null,null,null,null,null,null,null,null,null,null,null,null,null,null,null,null,null,128]
[null,null,null,null,null,null,null,null,null,null,null,null,null,null,null,null,null,null,null,null,null,null,null,null,null,null,null,null,null,null,129]
[null,null,null,null,null,null,null,null,null,null,null,null,null,null,null,null,null,null,null,null,null,null,null,null,null,null,null,null,null,null,130]
[null,null,null,null,null,null,null,null,null,null,null,null,null,null,null,null,null,null,null,null,null,null,null,null,null,null,null,null,null,null,131]
[null,null,null,null,null,null,null,null,null,null,null,null,null,null,null,null,null,null,null,null,null,null,null,null,null,null,null,null,null,null,132]
[null,null,null,null,null,null,null,null,null,null,null,null,null,null,null,null,null,null,null,null,null,null,null,null,null,null,null,null,null,null,133]
[null,null,null,null,null,null,null,null,null,null,null,null,null,null,null,null,null,null,null,null,null,null,null,null,null,null,null,null,null,null,134]
[null,null,null,null,null,null,null,null,null,null,null,null,null,null,null,null,null,null,null,null,null,null,null,null,null,null,null,null,null,null,135]
[null,null,null,null,null,null,null,null,null,null,null,null,null,null,null,null,null,null,null,null,null,null,null,null,null,null,null,null,null,null,136]
[null,null,null,null,null,null,null,null,null,null,null,null,null,null,null,null,null,null,null,null,null,null,null,null,null,null,null,null,null,null,137]
[null,null,null,null,null,null,null,null,null,null,null,null,null,null,null,null,null,null,null,null,null,null,null,null,null,null,null,null,null,null,138]
[null,null,null,null,null,null,null,null,null,null,null,null,null,null,null,null,null,null,null,null,null,null,null,null,null,null,null,null,null,null,139]
[null,null,null,null,null,null,null,null,null,null,null,null,null,null,null,null,null,null,null,null,null,null,null,null,null,null,null,null,null,null,140]
[null,null,null,null,null,null,null,null,null,null,null,null,null,null,null,null,null,null,null,null,null,null,null,null,null,null,null,null,null,null,141]
[null,null,null,null,null,null,null,null,null,null,null,null,null,null,null,null,null,null,null,null,null,null,null,null,null,null,null,null,null,null,142]
[null,null,null,null,null,null,null,null,null,null,null,null,null,null,null,null,null,null,null,null,null,null,null,null,null,null,null,null,null,null,143]
[null,null,null,null,null,null,null,null,null,null,null,null,null,null,null,null,null,null,null,null,null,null,null,null,null,null,null,null,null,null,144]
[null,null,null,null,null,null,null,null,null,null,null,null,null,null,null,null,null,null,null,null,null,null,null,null,null,null,null,null,null,null,145]
[null,null,null,null,null,null,null,null,null,null,null,null,null,null,null,null,null,null,null,null,null,null,null,null,null,null,null,null,null,null,146]
[null,null,null,null,null,null,null,null,null,null,null,null,null,null,null,null,null,null,null,null,null,null,null,null,null,null,null,null,null,null,147]
[null,null,null,null,null,null,null,null,null,null,null,null,null,null,null,null,null,null,null,null,null,null,null,null,null,null,null,null,null,null,148]
[null,null,null,null,null,null,null,null,null,null,null,null,null,null,null,null,null,null,null,null,null,null,null,null,null,null,null,null,null,null,149]
[null,null,null,null,null,null,null,null,null,null,null,null,null,null,null,null,null,null,null,null,null,null,null,null,null,null,null,null,null,null,150]
[null,null,null,null,null,null,null,null,null,null,null,null,null,null,null,null,null,null,null,null,null,null,null,null,null,null,null,null,null,null,151]
[null,null,null,null,null,null,null,null,null,null,null,null,null,null,null,null,null,null,null,null,null,null,null,null,null,null,null,null,null,null,152]
[null,null,null,null,null,null,null,null,null,null,null,null,null,null,null,null,null,null,null,null,null,null,null,null,null,null,null,null,null,null,153]
[null,null,null,null,null,null,null,null,null,null,null,null,null,null,null,null,null,null,null,null,null,null,null,null,null,null,null,null,null,null,154]
[null,null,null,null,null,null,null,null,null,null,null,null,null,null,null,null,null,null,null,null,null,null,null,null,null,null,null,null,null,null,155]
[null,null,null,null,null,null,null,null,null,null,null,null,null,null,null,null,null,null,null,null,null,null,null,null,null,null,null,null,null,null,156]
[null,null,null,null,null,null,null,null,null,null,null,null,null,null,null,null,null,null,null,null,null,null,null,null,null,null,null,null,null,null,157]
[null,null,null,null,null,null,null,null,null,null,null,null,null,null,null,null,null,null,null,null,null,null,null,null,null,null,null,null,null,null,158]
[null,null,null,null,null,null,null,null,null,null,null,null,null,null,null,null,null,null,null,null,null,null,null,null,null,null,null,null,null,null,159]
[null,null,null,null,null,null,null,null,null,null,null,null,null,null,null,null,null,null,null,null,null,null,null,null,null,null,null,null,null,null,160]
[null,null,null,null,null,null,null,null,null,null,null,null,null,null,null,null,null,null,null,null,null,null,null,null,null,null,null,null,null,null,161]
[null,null,null,null,null,null,null,null,null,null,null,null,null,null,null,null,null,null,null,null,null,null,null,null,null,null,null,null,null,null,162]
[null,null,null,null,null,null,null,null,null,null,null,null,null,null,null,null,null,null,null,null,null,null,null,null,null,null,null,null,null,null,163]
[null,null,null,null,null,null,null,null,null,null,null,null,null,null,null,null,null,null,null,null,null,null,null,null,null,null,null,null,null,null,164]
[null,null,null,null,null,null,null,null,null,null,null,null,null,null,null,null,null,null,null,null,null,null,null,null,null,null,null,null,null,null,165]
[null,null,null,null,null,null,null,null,null,null,null,null,null,null,null,null,null,null,null,null,null,null,null,null,null,null,null,null,null,null,166]
[null,null,null,null,null,null,null,null,null,null,null,null,null,null,null,null,null,null,null,null,null,null,null,null,null,null,null,null,null,null,167]
[null,null,null,null,null,null,null,null,null,null,null,null,null,null,null,null,null,null,null,null,null,null,null,null,null,null,null,null,null,null,168]
[null,null,null,null,null,null,null,null,null,null,null,null,null,null,null,null,null,null,null,null,null,null,null,null,null,null,null,null,null,null,169]
[null,null,null,null,null,null,null,null,null,null,null,null,null,null,null,null,null,null,null,null,null,null,null,null,null,null,null,null,null,null,170]
[null,null,null,null,null,null,null,null,null,null,null,null,null,null,null,null,null,null,null,null,null,null,null,null,null,null,null,null,null,null,171]
[null,null,null,null,null,null,null,null,null,null,null,null,null,null,null,null,null,null,null,null,null,null,null,null,null,null,null,null,null,null,172]
[null,null,null,null,null,null,null,null,null,null,null,null,null,null,null,null,null,null,null,null,null,null,null,null,null,null,null,null,null,null,173]
[null,null,null,null,null,null,null,null,null,null,null,null,null,null,null,null,null,null,null,null,null,null,null,null,null,null,null,null,null,null,174]
[null,null,null,null,null,null,null,null,null,null,null,null,null,null,null,null,null,null,null,null,null,null,null,null,null,null,null,null,null,null,175]
[null,null,null,null,null,null,null,null,null,null,null,null,null,null,null,null,null,null,null,null,null,null,null,null,null,null,null,null,null,null,176]
[null,null,null,null,null,null,null,null,null,null,null,null,null,null,null,null,null,null,null,null,null,null,null,null,null,null,null,null,null,null,177]
[null,null,null,null,null,null,null,null,null,null,null,null,null,null,null,null,null,null,null,null,null,null,null,null,null,null,null,null,null,null,178]
[null,null,null,null,null,null,null,null,null,null,null,null,null,null,null,null,null,null,null,null,null,null,null,null,null,null,null,null,null,null,179]
[null,null,null,null,null,null,null,null,null,null,null,null,null,null,null,null,null,null,null,null,null,null,null,null,null,null,null,null,null,null,180]
[null,null,null,null,null,null,null,null,null,null,null,null,null,null,null,null,null,null,null,null,null,null,null,null,null,null,null,null,null,null,181]
[null,null,null,null,null,null,null,null,null,null,null,null,null,null,null,null,null,null,null,null,null,null,null,null,null,null,null,null,null,null,182]
[null,null,null,null,null,null,null,null,null,null,null,null,null,null,null,null,null,null,null,null,null,null,null,null,null,null,null,null,null,null,183]
[null,null,null,null,null,null,null,null,null,null,null,null,null,null,null,null,null,null,null,null,null,null,null,null,null,null,null,null,null,null,184]
[null,null,null,null,null,null,null,null,null,null,null,null,null,null,null,null,null,null,null,null,null,null,null,null,null,null,null,null,null,null,185]
[null,null,null,null,null,null,null,null,null,null,null,null,null,null,null,null,null,null,null,null,null,null,null,null,null,null,null,null,null,null,186]
[null,null,null,null,null,null,null,null,null,null,null,null,null,null,null,null,null,null,null,null,null,null,null,null,null,null,null,null,null,null,187]
[null,null,null,null,null,null,null,null,null,null,null,null,null,null,null,null,null,null,null,null,null,null,null,null,null,null,null,null,null,null,188]
[null,null,null,null,null,null,null,null,null,null,null,null,null,null,null,null,null,null,null,null,null,null,null,null,null,null,null,null,null,null,189]
[null,null,null,null,null,null,null,null,null,null,null,null,null,null,null,null,null,null,null,null,null,null,null,null,null,null,null,null,null,null,190]
[null,null,null,null,null,null,null,null,null,null,null,null,null,null,null,null,null,null,null,null,null,null,null,null,null,null,null,null,null,null,191]
[null,null,null,null,null,null,null,null,null,null,null,null,null,null,null,null,null,null,null,null,null,null,null,null,null,null,null,null,null,null,192]
[null,null,null,null,null,null,null,null,null,null,null,null,null,null,null,null,null,null,null,null,null,null,null,null,null,null,null,null,null,null,193]
[null,null,null,null,null,null,null,null,null,null,null,null,null,null,null,null,null,null,null,null,null,null,null,null,null,null,null,null,null,null,194]
[null,null,null,null,null,null,null,null,null,null,null,null,null,null,null,null,null,null,null,null,null,null,null,null,null,null,null,null,null,null,195]
[null,null,null,null,null,null,null,null,null,null,null,null,null,null,null,null,null,null,null,null,null,null,null,null,null,null,null,null,null,null,196]
[null,null,null,null,null,null,null,null,null,null,null,null,null,null,null,null,null,null,null,null,null,null,null,null,null,null,null,null,null,null,197]
[null,null,null,null,null,null,null,null,null,null,null,null,null,null,null,null,null,null,null,null,null,null,null,null,null,null,null,null,null,null,198]
[null,null,null,null,null,null,null,null,null,null,null,null,null,null,null,null,null,null,null,null,null,null,null,null,null,null,null,null,null,null,199]
[null,null,null,null,null,null,null,null,null,null,null,null,null,null,null,null,null,null,null,null,null,null,null,null,null,null,null,null,null,null,200]
[null,null,null,null,null,null,null,null,null,null,null,null,null,null,null,null,null,null,null,null,null,null,null,null,null,null,null,null,null,null,201]
[null,null,null,null,null,null,null,null,null,null,null,null,null,null,null,null,null,null,null,null,null,null,null,null,null,null,null,null,null,null,202]
[null,null,null,null,null,null,null,null,null,null,null,null,null,null,null,null,null,null,null,null,null,null,null,null,null,null,null,null,null,null,203]
[null,null,null,null,null,null,null,null,null,null,null,null,null,null,null,null,null,null,null,null,null,null,null,null,null,null,null,null,null,null,204]
[null,null,null,null,null,null,null,null,null,null,null,null,null,null,null,null,null,null,null,null,null,null,null,null,null,null,null,null,null,null,205]
[null,null,null,null,null,null,null,null,null,null,null,null,null,null,null,null,null,null,null,null,null,null,null,null,null,null,null,null,null,null,206]
[null,null,null,null,null,null,null,null,null,null,null,null,null,null,null,null,null,null,null,null,null,null,null,null,null,null,null,null,null,null,207]
[null,null,null,null,null,null,null,null,null,null,null,null,null,null,null,null,null,null,null,null,null,null,null,null,null,null,null,null,null,null,208]
[null,null,null,null,null,null,null,null,null,null,null,null,null,null,null,null,null,null,null,null,null,null,null,null,null,null,null,null,null,null,209]
[null,null,null,null,null,null,null,null,null,null,null,null,null,null,null,null,null,null,null,null,null,null,null,null,null,null,null,null,null,null,210]
[null,null,null,null,null,null,null,null,null,null,null,null,null,null,null,null,null,null,null,null,null,null,null,null,null,null,null,null,null,null,211]
[null,null,null,null,null,null,null,null,null,null,null,null,null,null,null,null,null,null,null,null,null,null,null,null,null,null,null,null,null,null,212]
[null,null,null,null,null,null,null,null,null,null,null,null,null,null,null,null,null,null,null,null,null,null,null,null,null,null,null,null,null,null,213]
[null,null,null,null,null,null,null,null,null,null,null,null,null,null,null,null,null,null,null,null,null,null,null,null,null,null,null,null,null,null,214]
[null,null,null,null,null,null,null,null,null,null,null,null,null,null,null,null,null,null,null,null,null,null,null,null,null,null,null,null,null,null,215]
[null,null,null,null,null,null,null,null,null,null,null,null,null,null,null,null,null,null,null,null,null,null,null,null,null,null,null,null,null,null,216]
[null,null,null,null,null,null,null,null,null,null,null,null,null,null,null,null,null,null,null,null,null,null,null,null,null,null,null,null,null,null,217]
[null,null,null,null,null,null,null,null,null,null,null,null,null,null,null,null,null,null,null,null,null,null,null,null,null,null,null,null,null,null,218]
[null,null,null,null,null,null,null,null,null,null,null,null,null,null,null,null,null,null,null,null,null,null,null,null,null,null,null,null,null,null,219]
[null,null,null,null,null,null,null,null,null,null,null,null,null,null,null,null,null,null,null,null,null,null,null,null,null,null,null,null,null,null,220]
[null,null,null,null,null,null,null,null,null,null,null,null,null,null,null,null,null,null,null,null,null,null,null,null,null,null,null,null,null,null,221]
[null,null,null,null,null,null,null,null,null,null,null,null,null,null,null,null,null,null,null,null,null,null,null,null,null,null,null,null,null,null,222]
[null,null,null,null,null,null,null,null,null,null,null,null,null,null,null,null,null,null,null,null,null,null,null,null,null,null,null,null,null,null,223]
[null,null,null,null,null,null,null,null,null,null,null,null,null,null,null,null,null,null,null,null,null,null,null,null,null,null,null,null,null,null,224]
[null,null,null,null,null,null,null,null,null,null,null,null,null,null,null,null,null,null,null,null,null,null,null,null,null,null,null,null,null,null,225]
[null,null,null,null,null,null,null,null,null,null,null,null,null,null,null,null,null,null,null,null,null,null,null,null,null,null,null,null,null,null,226]
[null,null,null,null,null,null,null,null,null,null,null,null,null,null,null,null,null,null,null,null,null,null,null,null,null,null,null,null,null,null,227]
[null,null,null,null,null,null,null,null,null,null,null,null,null,null,null,null,null,null,null,null,null,null,null,null,null,null,null,null,null,null,228]
[null,null,null,null,null,null,null,null,null,null,null,null,null,null,null,null,null,null,null,null,null,null,null,null,null,null,null,null,null,null,229]
[null,null,null,null,null,null,null,null,null,null,null,null,null,null,null,null,null,null,null,null,null,null,null,null,null,null,null,null,null,null,230]
[null,null,null,null,null,null,null,null,null,null,null,null,null,null,null,null,null,null,null,null,null,null,null,null,null,null,null,null,null,null,231]
[null,null,null,null,null,null,null,null,null,null,null,null,null,null,null,null,null,null,null,null,null,null,null,null,null,null,null,null,null,null,232]
[null,null,null,null,null,null,null,null,null,null,null,null,null,null,null,null,null,null,null,null,null,null,null,null,null,null,null,null,null,null,233]
[null,null,null,null,null,null,null,null,null,null,null,null,null,null,null,null,null,null,null,null,null,null,null,null,null,null,null,null,null,null,234]
[null,null,null,null,null,null,null,null,null,null,null,null,null,null,null,null,null,null,null,null,null,null,null,null,null,null,null,null,null,null,235]
[null,null,null,null,null,null,null,null,null,null,null,null,null,null,null,null,null,null,null,null,null,null,null,null,null,null,null,null,null,null,236]
[null,null,null,null,null,null,null,null,null,null,null,null,null,null,null,null,null,null,null,null,null,null,null,null,null,null,null,null,null,null,237]
[null,null,null,null,null,null,null,null,null,null,null,null,null,null,null,null,null,null,null,null,null,null,null,null,null,null,null,null,null,null,238]
[null,null,null,null,null,null,null,null,null,null,null,null,null,null,null,null,null,null,null,null,null,null,null,null,null,null,null,null,null,null,239]
[null,null,null,null,null,null,null,null,null,null,null,null,null,null,null,null,null,null,null,null,null,null,null,null,null,null,null,null,null,null,240]
[null,null,null,null,null,null,null,null,null,null,null,null,null,null,null,null,null,null,null,null,null,null,null,null,null,null,null,null,null,null,241]
[null,null,null,null,null,null,null,null,null,null,null,null,null,null,null,null,null,null,null,null,null,null,null,null,null,null,null,null,null,null,242]
[null,null,null,null,null,null,null,null,null,null,null,null,null,null,null,null,null,null,null,null,null,null,null,null,null,null,null,null,null,null,243]
[null,null,null,null,null,null,null,null,null,null,null,null,null,null,null,null,null,null,null,null,null,null,null,null,null,null,null,null,null,null,244]
[null,null,null,null,null,null,null,null,null,null,null,null,null,null,null,null,null,null,null,null,null,null,null,null,null,null,null,null,null,null,245]
[null,null,null,null,null,null,null,null,null,null,null,null,null,null,null,null,null,null,null,null,null,null,null,null,null,null,null,null,null,null,246]
[null,null,null,null,null,null,null,null,null,null,null,null,null,null,null,null,null,null,null,null,null,null,null,null,null,null,null,null,null,null,247]
[null,null,null,null,null,null,null,null,null,null,null,null,null,null,null,null,null,null,null,null,null,null,null,null,null,null,null,null,null,null,248]
[null,null,null,null,null,null,null,null,null,null,null,null,null,null,null,null,null,null,null,null,null,null,null,null,null,null,null,null,null,null,249]
[null,null,null,null,null,null,null,null,null,null,null,null,null,null,null,null,null,null,null,null,null,null,null,null,null,null,null,null,null,null,250]
[null,null,null,null,null,null,null,null,null,null,null,null,null,null,null,null,null,null,null,null,null,null,null,null,null,null,null,null,null,null,251]
[null,null,null,null,null,null,null,null,null,null,null,null,null,null,null,null,null,null,null,null,null,null,null,null,null,null,null,null,null,null,252]
[null,null,null,null,null,null,null,null,null,null,null,null,null,null,null,null,null,null,null,null,null,null,null,null,null,null,null,null,null,null,253]
[null,null,null,null,null,null,null,null,null,null,null,null,null,null,null,null,null,null,null,null,null,null,null,null,null,null,null,null,null,null,254]
[null,null,null,null,null,null,null,null,null,null,null,null,null,null,null,null,null,null,null,null,null,null,null,null,null,null,null,null,null,null,255]
[null,null,null,null,null,null,null,null,null,null,null,null,null,null,null,null,null,null,null,null,null,null,null,null,null,null,null,null,null,null,256]
[null,null,null,null,null,null,null,null,null,null,null,null,null,null,null,null,null,null,null,null,null,null,null,null,null,null,null,null,null,null,257]
[null,null,null,null,null,null,null,null,null,null,null,null,null,null,null,null,null,null,null,null,null,null,null,null,null,null,null,null,null,null,258]
[null,null,null,null,null,null,null,null,null,null,null,null,null,null,null,null,null,null,null,null,null,null,null,null,null,null,null,null,null,null,259]
[null,null,null,null,null,null,null,null,null,null,null,null,null,null,null,null,null,null,null,null,null,null,null,null,null,null,null,null,null,null,260]
[null,null,null,null,null,null,null,null,null,null,null,null,null,null,null,null,null,null,null,null,null,null,null,null,null,null,null,null,null,null,261]
[null,null,null,null,null,null,null,null,null,null,null,null,null,null,null,null,null,null,null,null,null,null,null,null,null,null,null,null,null,null,262]
[null,null,null,null,null,null,null,null,null,null,null,null,null,null,null,null,null,null,null,null,null,null,null,null,null,null,null,null,null,null,263]
[null,null,null,null,null,null,null,null,null,null,null,null,null,null,null,null,null,null,null,null,null,null,null,null,null,null,null,null,null,null,264]
[null,null,null,null,null,null,null,null,null,null,null,null,null,null,null,null,null,null,null,null,null,null,null,null,null,null,null,null,null,null,265]
[null,null,null,null,null,null,null,null,null,null,null,null,null,null,null,null,null,null,null,null,null,null,null,null,null,null,null,null,null,null,266]
[null,null,null,null,null,null,null,null,null,null,null,null,null,null,null,null,null,null,null,null,null,null,null,null,null,null,null,null,null,null,267]
[null,null,null,null,null,null,null,null,null,null,null,null,null,null,null,null,null,null,null,null,null,null,null,null,null,null,null,null,null,null,268]
[null,null,null,null,null,null,null,null,null,null,null,null,null,null,null,null,null,null,null,null,null,null,null,null,null,null,null,null,null,null,269]
[null,null,null,null,null,null,null,null,null,null,null,null,null,null,null,null,null,null,null,null,null,null,null,null,null,null,null,null,null,null,270]
[null,null,null,null,null,null,null,null,null,null,null,null,null,null,null,null,null,null,null,null,null,null,null,null,null,null,null,null,null,null,271]
[null,null,null,null,null,null,null,null,null,null,null,null,null,null,null,null,null,null,null,null,null,null,null,null,null,null,null,null,null,null,272]
[null,null,null,null,null,null,null,null,null,null,null,null,null,null,null,null,null,null,null,null,null,null,null,null,null,null,null,null,null,null,273]
[null,null,null,null,null,null,null,null,null,null,null,null,null,null,null,null,null,null,null,null,null,null,null,null,null,null,null,null,null,null,274]
[null,null,null,null,null,null,null,null,null,null,null,null,null,null,null,null,null,null,null,null,null,null,null,null,null,null,null,null,null,null,275]
[null,null,null,null,null,null,null,null,null,null,null,null,null,null,null,null,null,null,null,null,null,null,null,null,null,null,null,null,null,null,276]
[null,null,null,null,null,null,null,null,null,null,null,null,null,null,null,null,null,null,null,null,null,null,null,null,null,null,null,null,null,null,277]
[null,null,null,null,null,null,null,null,null,null,null,null,null,null,null,null,null,null,null,null,null,null,null,null,null,null,null,null,null,null,278]
[null,null,null,null,null,null,null,null,null,null,null,null,null,null,null,null,null,null,null,null,null,null,null,null,null,null,null,null,null,null,279]
[null,null,null,null,null,null,null,null,null,null,null,null,null,null,null,null,null,null,null,null,null,null,null,null,null,null,null,null,null,null,280]
[null,null,null,null,null,null,null,null,null,null,null,null,null,null,null,null,null,null,null,null,null,null,null,null,null,null,null,null,null,null,281]
[null,null,null,null,null,null,null,null,null,null,null,null,null,null,null,null,null,null,null,null,null,null,null,null,null,null,null,null,null,null,282]
[null,null,null,null,null,null,null,null,null,null,null,null,null,null,null,null,null,null,null,null,null,null,null,null,null,null,null,null,null,null,283]
[null,null,null,null,null,null,null,null,null,null,null,null,null,null,null,null,null,null,null,null,null,null,null,null,null,null,null,null,null,null,284]
[null,null,null,null,null,null,null,null,null,null,null,null,null,null,null,null,null,null,null,null,null,null,null,null,null,null,null,null,null,null,285]
[null,null,null,null,null,null,null,null,null,null,null,null,null,null,null,null,null,null,null,null,null,null,null,null,null,null,null,null,null,null,286]
[null,null,null,null,null,null,null,null,null,null,null,null,null,null,null,null,null,null,null,null,null,null,null,null,null,null,null,null,null,null,287]
[null,null,null,null,null,null,null,null,null,null,null,null,null,null,null,null,null,null,null,null,null,null,null,null,null,null,null,null,null,null,288]
[null,null,null,null,null,null,null,null,null,null,null,null,null,null,null,null,null,null,null,null,null,null,null,null,null,null,null,null,null,null,289]
[null,null,null,null,null,null,null,null,null,null,null,null,null,null,null,null,null,null,null,null,null,null,null,null,null,null,null,null,null,null,290]
[null,null,null,null,null,null,null,null,null,null,null,null,null,null,null,null,null,null,null,null,null,null,null,null,null,null,null,null,null,null,291]
[null,null,null,null,null,null,null,null,null,null,null,null,null,null,null,null,null,null,null,null,null,null,null,null,null,null,null,null,null,null,292]
[null,null,null,null,null,null,null,null,null,null,null,null,null,null,null,null,null,null,null,null,null,null,null,null,null,null,null,null,null,null,293]
[null,null,null,null,null,null,null,null,null,null,null,null,null,null,null,null,null,null,null,null,null,null,null,null,null,null,null,null,null,null,294]
[null,null,null,null,null,null,null,null,null,null,null,null,null,null,null,null,null,null,null,null,null,null,null,null,null,null,null,null,null,null,295]
[null,null,null,null,null,null,null,null,null,null,null,null,null,null,null,null,null,null,null,null,null,null,null,null,null,null,null,null,null,null,296]
[null,null,null,null,null,null,null,null,null,null,null,null,null,null,null,null,null,null,null,null,null,null,null,null,null,null,null,null,null,null,297]
[null,null,null,null,null,null,null,null,null,null,null,null,null,null,null,null,null,null,null,null,null,null,null,null,null,null,null,null,null,null,298]
[null,null,null,null,null,null,null,null,null,null,null,null,null,null,null,null,null,null,null,null,null,null,null,null,null,null,null,null,null,null,299]
[null,null,null,null,null,null,null,null,null,null,null,null,null,null,null,null,null,null,null,null,null,null,null,null,null,null,null,null,null,null,300]
[null,null,null,null,null,null,null,null,null,null,null,null,null,null,null,null,null,null,null,null,null,null,null,null,null,null,null,null,null,null,301]
[null,null,null,null,null,null,null,null,null,null,null,null,null,null,null,null,null,null,null,null,null,null,null,null,null,null,null,null,null,null,302]
[null,null,null,null,null,null,null,null,null,null,null,null,null,null,null,null,null,null,null,null,null,null,null,null,null,null,null,null,null,null,303]
[null,null,null,null,null,null,null,null,null,null,null,null,null,null,null,null,null,null,null,null,null,null,null,null,null,null,null,null,null,null,304]
[null,null,null,null,null,null,null,null,null,null,null,null,null,null,null,null,null,null,null,null,null,null,null,null,null,null,null,null,null,null,305]
[null,null,null,null,null,null,null,null,null,null,null,null,null,null,null,null,null,null,null,null,null,null,null,null,null,null,null,null,null,null,306]
[null,null,null,null,null,null,null,null,null,null,null,null,null,null,null,null,null,null,null,null,null,null,null,null,null,null,null,null,null,null,307]
[null,null,null,null,null,null,null,null,null,null,null,null,null,null,null,null,null,null,null,null,null,null,null,null,null,null,null,null,null,null,308]
[null,null,null,null,null,null,null,null,null,null,null,null,null,null,null,null,null,null,null,null,null,null,null,null,null,null,null,null,null,null,309]
[null,null,null,null,null,null,null,null,null,null,null,null,null,null,null,null,null,null,null,null,null,null,null,null,null,null,null,null,null,null,310]
[null,null,null,null,null,null,null,null,null,null,null,null,null,null,null,null,null,null,null,null,null,null,null,null,null,null,null,null,null,null,311]
[null,null,null,null,null,null,null,null,null,null,null,null,null,null,null,null,null,null,null,null,null,null,null,null,null,null,null,null,null,null,312]
[null,null,null,null,null,null,null,null,null,null,null,null,null,null,null,null,null,null,null,null,null,null,null,null,null,null,null,null,null,null,313]
[null,null,null,null,null,null,null,null,null,null,null,null,null,null,null,null,null,null,null,null,null,null,null,null,null,null,null,null,null,null,314]
[null,null,null,null,null,null,null,null,null,null,null,null,null,null,null,null,null,null,null,null,null,null,null,null,null,null,null,null,null,null,315]
[null,null,null,null,null,null,null,null,null,null,null,null,null,null,null,null,null,null,null,null,null,null,null,null,null,null,null,null,null,null,316]
[null,null,null,null,null,null,null,null,null,null,null,null,null,null,null,null,null,null,null,null,null,null,null,null,null,null,null,null,null,null,317]
[null,null,null,null,null,null,null,null,null,null,null,null,null,null,null,null,null,null,null,null,null,null,null,null,null,null,null,null,null,null,318]
[null,null,null,null,null,null,null,null,null,null,null,null,null,null,null,null,null,null,null,null,null,null,null,null,null,null,null,null,null,null,319]
[null,null,null,null,null,null,null,null,null,null,null,null,null,null,null,null,null,null,null,null,null,null,null,null,null,null,null,null,null,null,320]
[null,null,null,null,null,null,null,null,null,null,null,null,null,null,null,null,null,null,null,null,null,null,null,null,null,null,null,null,null,null,321]
[null,null,null,null,null,null,null,null,null,null,null,null,null,null,null,null,null,null,null,null,null,null,null,null,null,null,null,null,null,null,322]
[null,null,null,null,null,null,null,null,null,null,null,null,null,null,null,null,null,null,null,null,null,null,null,null,null,null,null,null,null,null,323]
[null,null,null,null,null,null,null,null,null,null,null,null,null,null,null,null,null,null,null,null,null,null,null,null,null,null,null,null,null,null,324]
[null,null,null,null,null,null,null,null,null,null,null,null,null,null,null,null,null,null,null,null,null,null,null,null,null,null,null,null,null,null,325]
[null,null,null,null,null,null,null,null,null,null,null,null,null,null,null,null,null,null,null,null,null,null,null,null,null,null,null,null,null,null,326]
[null,null,null,null,null,null,null,null,null,null,null,null,null,null,null,null,null,null,null,null,null,null,null,null,null,null,null,null,null,null,327]
[null,null,null,null,null,null,null,null,null,null,null,null,null,null,null,null,null,null,null,null,null,null,null,null,null,null,null,null,null,null,328]
[null,null,null,null,null,null,null,null,null,null,null,null,null,null,null,null,null,null,null,null,null,null,null,null,null,null,null,null,null,null,329]
[null,null,null,null,null,null,null,null,null,null,null,null,null,null,null,null,null,null,null,null,null,null,null,null,null,null,null,null,null,null,330]
[null,null,null,null,null,null,null,null,null,null,null,null,null,null,null,null,null,null,null,null,null,null,null,null,null,null,null,null,null,null,331]
[null,null,null,null,null,null,null,null,null,null,null,null,null,null,null,null,null,null,null,null,null,null,null,null,null,null,null,null,null,null,332]
[null,null,null,null,null,null,null,null,null,null,null,null,null,null,null,null,null,null,null,null,null,null,null,null,null,null,null,null,null,null,333]
[null,null,null,null,null,null,null,null,null,null,null,null,null,null,null,null,null,null,null,null,null,null,null,null,null,null,null,null,null,null,334]
[null,null,null,null,null,null,null,null,null,null,null,null,null,null,null,null,null,null,null,null,null,null,null,null,null,null,null,null,null,null,335]
[null,null,null,null,null,null,null,null,null,null,null,null,null,null,null,null,null,null,null,null,null,null,null,null,null,null,null,null,null,null,336]
[null,null,null,null,null,null,null,null,null,null,null,null,null,null,null,null,null,null,null,null,null,null,null,null,null,null,null,null,null,null,337]
[null,null,null,null,null,null,null,null,null,null,null,null,null,null,null,null,null,null,null,null,null,null,null,null,null,null,null,null,null,null,338]
[null,null,null,null,null,null,null,null,null,null,null,null,null,null,null,null,null,null,null,null,null,null,null,null,null,null,null,null,null,null,339]
[null,null,null,null,null,null,null,null,null,null,null,null,null,null,null,null,null,null,null,null,null,null,null,null,null,null,null,null,null,null,340]
[null,null,null,null,null,null,null,null,null,null,null,null,null,null,null,null,null,null,null,null,null,null,null,null,null,null,null,null,null,null,341]
[null,null,null,null,null,null,null,null,null,null,null,null,null,null,null,null,null,null,null,null,null,null,null,null,null,null,null,null,null,null,342]
[null,null,null,null,null,null,null,null,null,null,null,null,null,null,null,null,null,null,null,null,null,null,null,null,null,null,null,null,null,null,343]
[null,null,null,null,null,null,null,null,null,null,null,null,null,null,null,null,null,null,null,null,null,null,null,null,null,null,null,null,null,null,344]
[null,null,null,null,null,null,null,null,null,null,null,null,null,null,null,null,null,null,null,null,null,null,null,null,null,null,null,null,null,null,345]
[null,null,null,null,null,null,null,null,null,null,null,null,null,null,null,null,null,null,null,null,null,null,null,null,null,null,null,null,null,null,346]
[null,null,null,null,null,null,null,null,null,null,null,null,null,null,null,null,null,null,null,null,null,null,null,null,null,null,null,null,null,null,347]
[null,null,null,null,null,null,null,null,null,null,null,null,null,null,null,null,null,null,null,null,null,null,null,null,null,null,null,null,null,null,348]
[null,null,null,null,null,null,null,null,null,null,null,null,null,null,null,null,null,null,null,null,null,null,null,null,null,null,null,null,null,null,349]
[null,null,null,null,null,null,null,null,null,null,null,null,null,null,null,null,null,null,null,null,null,null,null,null,null,null,null,null,null,null,350]
[null,null,null,null,null,null,null,null,null,null,null,null,null,null,null,null,null,null,null,null,null,null,null,null,null,null,null,null,null,null,351]
[null,null,null,null,null,null,null,null,null,null,null,null,null,null,null,null,null,null,null,null,null,null,null,null,null,null,null,null,null,null,352]
[null,null,null,null,null,null,null,null,null,null,null,null,null,null,null,null,null,null,null,null,null,null,null,null,null,null,null,null,null,null,353]
[null,null,null,null,null,null,null,null,null,null,null,null,null,null,null,null,null,null,null,null,null,null,null,null,null,null,null,null,null,null,354]
[null,null,null,null,null,null,null,null,null,null,null,null,null,null,null,null,null,null,null,null,null,null,null,null,null,null,null,null,null,null,355]
[null,null,null,null,null,null,null,null,null,null,null,null,null,null,null,null,null,null,null,null,null,null,null,null,null,null,null,null,null,null,356]
[null,null,null,null,null,null,null,null,null,null,null,null,null,null,null,null,null,null,null,null,null,null,null,null,null,null,null,null,null,null,357]
[null,null,null,null,null,null,null,null,null,null,null,null,null,null,null,null,null,null,null,null,null,null,null,null,null,null,null,null,null,null,358]
[null,null,null,null,null,null,null,null,null,null,null,null,null,null,null,null,null,null,null,null,null,null,null,null,null,null,null,null,null,null,359]
[null,null,null,null,null,null,null,null,null,null,null,null,null,null,null,null,null,null,null,null,null,null,null,null,null,null,null,null,null,null,360]
[null,null,null,null,null,null,null,null,null,null,null,null,null,null,null,null,null,null,null,null,null,null,null,null,null,null,null,null,null,null,361]
[null,null,null,null,null,null,null,null,null,null,null,null,null,null,null,null,null,null,null,null,null,null,null,null,null,null,null,null,null,null,362]
[null,null,null,null,null,null,null,null,null,null,null,null,null,null,null,null,null,null,null,null,null,null,null,null,null,null,null,null,null,null,363]
[null,null,null,null,null,null,null,null,null,null,null,null,null,null,null,null,null,null,null,null,null,null,null,null,null,null,null,null,null,null,364]
[null,null,null,null,null,null,null,null,null,null,null,null,null,null,null,null,null,null,null,null,null,null,null,null,null,null,null,null,null,null,365]
[null,null,null,null,null,null,null,null,null,null,null,null,null,null,null,null,null,null,null,null,null,null,null,null,null,null,null,null,null,null,366]

{"sheet":"VI poziom","index":16,"n_rows":7,"n_cols":3,"rows_kept":7,"cut":false,"hidden":true,"merged":[]}
[]
[]
[null,"Lp","Wartość"]
[null,1,50]
[null,2,120]
[null,3,60]
[null,4,65]

{"sheet":"PodsumowanieVI","index":17,"n_rows":9,"n_cols":8,"rows_kept":9,"cut":false,"hidden":true,"merged":[[2,5,2,6],[2,7,2,17]]}
[]
[]
[null,null,null,null,null,"Wynik testu:",null,"ULP(95%)95% >= Limit: Brak możliwości zmniejszenia częstotliwości monitorowania emisji"]
[]
[null,"Lp.","Wynik pomiaru","ULP(95%)95%","Limit"]
[null,1,{"$f":"Arkusz7!AF3","v":50},{"$f":"Arkusz7!$AF$19","v":272.3081708525437},{"$f":"Arkusz7!$C$2","v":1.0000000000000001E-5}]
[null,2,{"$f":"Arkusz7!AF4","v":120},{"$f":"Arkusz7!$AF$19","v":272.3081708525437},{"$f":"Arkusz7!$C$2","v":1.0000000000000001E-5}]
[null,3,{"$f":"Arkusz7!AF5","v":60},{"$f":"Arkusz7!$AF$19","v":272.3081708525437},{"$f":"Arkusz7!$C$2","v":1.0000000000000001E-5}]
[null,4,{"$f":"Arkusz7!AF6","v":65},{"$f":"Arkusz7!$AF$19","v":272.3081708525437},{"$f":"Arkusz7!$C$2","v":1.0000000000000001E-5}]

{"sheet":"VIII poziomW","index":18,"n_rows":14,"n_cols":3,"rows_kept":14,"cut":false,"hidden":true,"merged":[]}
[]
[]
[null,"Lp","Wartość"]
[null,1,55]
[null,2,45]
[null,3,62]
[null,4,52]
[null,5,44]
[null,6,56]
[null,7,58]
[null,8,59]
[null,9,64]
[null,10,47]
[null,11,58]

{"sheet":"PodsumowanieIV","index":19,"n_rows":8,"n_cols":8,"rows_kept":8,"cut":false,"hidden":true,"merged":[[2,5,2,6],[2,7,2,17]]}
[]
[]
[null,null,null,null,null,"Wynik testu:",null,"ULP(95%)95% >= Limit: Brak możliwości zmniejszenia częstotliwości monitorowania emisji"]
[]
[null,"Lp.","Wynik pomiaru","ULP(95%)95%","Limit"]
[null,1,{"$f":"Arkusz7!R3","v":55},{"$f":"Arkusz7!$R$19","v":167.76098969416353},{"$f":"Arkusz7!$C$2","v":1.0000000000000001E-5}]
[null,2,{"$f":"Arkusz7!R4","v":51},{"$f":"Arkusz7!$R$19","v":167.76098969416353},{"$f":"Arkusz7!$C$2","v":1.0000000000000001E-5}]
[null,3,{"$f":"Arkusz7!R5","v":62},{"$f":"Arkusz7!$R$19","v":167.76098969416353},{"$f":"Arkusz7!$C$2","v":1.0000000000000001E-5}]

{"sheet":"PodsumowanieVIIW","index":20,"n_rows":11,"n_cols":9,"rows_kept":11,"cut":false,"hidden":true,"merged":[[2,6,2,7],[2,8,2,15]]}
[]
[]
[null,null,null,null,null,null,"Wynik testu:",null,"ULP(95%)90% >= Limit: Konieczność zwiększenia częstotliwości pomiarów emisji do poprzedniego poziomu"]
[]
[null,"Lp.","Wynik pomiaru","ULP(95%)90%","ULP(95%)95%","Limit"]
[null,1,{"$f":"Arkusz7!I36","v":150},{"$f":"Arkusz7!$I$26","v":174.78380734714375},{"$f":"Arkusz7!$I$32","v":246.54485289342165},{"$f":"Arkusz7!$C$2","v":1.0000000000000001E-5}]
[null,2,{"$f":"Arkusz7!I37","v":120},{"$f":"Arkusz7!$I$26","v":174.78380734714375},{"$f":"Arkusz7!$I$32","v":246.54485289342165},{"$f":"Arkusz7!$C$2","v":1.0000000000000001E-5}]
[null,3,{"$f":"Arkusz7!I38","v":110},{"$f":"Arkusz7!$I$26","v":174.78380734714375},{"$f":"Arkusz7!$I$32","v":246.54485289342165},{"$f":"Arkusz7!$C$2","v":1.0000000000000001E-5}]
[null,4,{"$f":"Arkusz7!I39","v":100},{"$f":"Arkusz7!$I$26","v":174.78380734714375},{"$f":"Arkusz7!$I$32","v":246.54485289342165},{"$f":"Arkusz7!$C$2","v":1.0000000000000001E-5}]
[null,5,{"$f":"Arkusz7!I40","v":115},{"$f":"Arkusz7!$I$26","v":174.78380734714375},{"$f":"Arkusz7!$I$32","v":246.54485289342165},{"$f":"Arkusz7!$C$2","v":1.0000000000000001E-5}]
[null,6,{"$f":"Arkusz7!I41","v":130},{"$f":"Arkusz7!$I$26","v":174.78380734714375},{"$f":"Arkusz7!$I$32","v":246.54485289342165},{"$f":"Arkusz7!$C$2","v":1.0000000000000001E-5}]

{"sheet":"PodsumowanieVIIIW","index":21,"n_rows":16,"n_cols":10,"rows_kept":16,"cut":false,"hidden":true,"merged":[[2,7,2,8],[2,9,2,16]]}
[]
[]
[null,null,null,null,null,null,null,"Wynik testu:",null,"P90 >= 0,9Limit: Konieczność zwiększenia częstotliwości pomiarów emisji do poprzedniego poziomu"]
[]
[null,"Lp.","Wynik pomiaru","P90","Limit","0,9Limit","0,75Limit"]
[null,1,{"$f":"Arkusz7!F36","v":55},{"$f":"Arkusz7!$F$23","v":62},{"$f":"Arkusz7!$C$2","v":1.0000000000000001E-5},{"$f":"0.9*E6","v":9.0000000000000002E-6},{"$f":"0.75*E6","v":7.500000000000001E-6}]
[null,2,{"$f":"Arkusz7!F37","v":45},{"$f":"Arkusz7!$F$23","v":62},{"$f":"Arkusz7!$C$2","v":1.0000000000000001E-5},{"$f":"0.9*E7","v":9.0000000000000002E-6},{"$f":"0.75*E7","v":7.500000000000001E-6}]
[null,3,{"$f":"Arkusz7!F38","v":62},{"$f":"Arkusz7!$F$23","v":62},{"$f":"Arkusz7!$C$2","v":1.0000000000000001E-5},9.0000000000000002E-6,7.500000000000001E-6]
[null,4,{"$f":"Arkusz7!F39","v":52},{"$f":"Arkusz7!$F$23","v":62},{"$f":"Arkusz7!$C$2","v":1.0000000000000001E-5},9.0000000000000002E-6,7.500000000000001E-6]
[null,5,{"$f":"Arkusz7!F40","v":44},{"$f":"Arkusz7!$F$23","v":62},{"$f":"Arkusz7!$C$2","v":1.0000000000000001E-5},9.0000000000000002E-6,7.500000000000001E-6]
[null,6,{"$f":"Arkusz7!F41","v":56},{"$f":"Arkusz7!$F$23","v":62},{"$f":"Arkusz7!$C$2","v":1.0000000000000001E-5},9.0000000000000002E-6,7.500000000000001E-6]
[null,7,{"$f":"Arkusz7!F42","v":58},{"$f":"Arkusz7!$F$23","v":62},{"$f":"Arkusz7!$C$2","v":1.0000000000000001E-5},9.0000000000000002E-6,7.500000000000001E-6]
[null,8,{"$f":"Arkusz7!F43","v":59},{"$f":"Arkusz7!$F$23","v":62},{"$f":"Arkusz7!$C$2","v":1.0000000000000001E-5},9.0000000000000002E-6,7.500000000000001E-6]
[null,9,{"$f":"Arkusz7!F44","v":64},{"$f":"Arkusz7!$F$23","v":62},{"$f":"Arkusz7!$C$2","v":1.0000000000000001E-5},9.0000000000000002E-6,7.500000000000001E-6]
[null,10,{"$f":"Arkusz7!F45","v":47},{"$f":"Arkusz7!$F$23","v":62},{"$f":"Arkusz7!$C$2","v":1.0000000000000001E-5},9.0000000000000002E-6,7.500000000000001E-6]
[null,11,{"$f":"Arkusz7!F46","v":58},{"$f":"Arkusz7!$F$23","v":62},{"$f":"Arkusz7!$C$2","v":1.0000000000000001E-5},9.0000000000000002E-6,7.500000000000001E-6]

{"sheet":"PodsumowanieVIW","index":22,"n_rows":9,"n_cols":9,"rows_kept":9,"cut":false,"hidden":true,"merged":[[2,6,2,7],[2,8,2,15]]}
[]
[]
[null,null,null,null,null,null,"Wynik testu:",null,"ULP(95%)90% >= Limit: Konieczność zwiększenia częstotliwości pomiarów emisji do poprzedniego poziomu"]
[]
[null,"Lp.","Wynik pomiaru","ULP(95%)90%","ULP(95%)95%","Limit"]
[null,1,{"$f":"Arkusz7!L36","v":50},{"$f":"Arkusz7!$L$26","v":102.37475062505143},{"$f":"Arkusz7!$L$32","v":146.450483160543},{"$f":"Arkusz7!$C$2","v":1.0000000000000001E-5}]
[null,2,{"$f":"Arkusz7!L37","v":48},{"$f":"Arkusz7!$L$26","v":102.37475062505143},{"$f":"Arkusz7!$L$32","v":146.450483160543},{"$f":"Arkusz7!$C$2","v":1.0000000000000001E-5}]
[null,3,{"$f":"Arkusz7!L38","v":70},{"$f":"Arkusz7!$L$26","v":102.37475062505143},{"$f":"Arkusz7!$L$32","v":146.450483160543},{"$f":"Arkusz7!$C$2","v":1.0000000000000001E-5}]
[null,4,{"$f":"Arkusz7!L39","v":65},{"$f":"Arkusz7!$L$26","v":102.37475062505143},{"$f":"Arkusz7!$L$32","v":146.450483160543},{"$f":"Arkusz7!$C$2","v":1.0000000000000001E-5}]

{"sheet":"PodsumowanieVW","index":23,"n_rows":8,"n_cols":9,"rows_kept":8,"cut":false,"hidden":true,"merged":[[2,6,2,7],[2,8,2,15]]}
[]
[]
[null,null,null,null,null,null,"Wynik testu:",null,"ULP(95%)90% < Limit: Zmniejszona częstotliwość pomiaru emisji może być utrzymana w kolejnym okresie"]
[]
[null,"Lp.","Wynik pomiaru","ULP(95%)90%","ULP(95%)95%","Limit"]
[null,1,{"$f":"Arkusz7!O36","v":5},{"$f":"Arkusz7!$O$26","v":9.5878980205123199},{"$f":"Arkusz7!$O$32","v":14.041391022433865},{"$f":"Arkusz7!$C$2","v":1.0000000000000001E-5}]
[null,2,{"$f":"Arkusz7!O37","v":5.5},{"$f":"Arkusz7!$O$26","v":9.5878980205123199},{"$f":"Arkusz7!$O$32","v":14.041391022433865},{"$f":"Arkusz7!$C$2","v":1.0000000000000001E-5}]
[null,3,{"$f":"Arkusz7!O38","v":5.4},{"$f":"Arkusz7!$O$26","v":9.5878980205123199},{"$f":"Arkusz7!$O$32","v":14.041391022433865},{"$f":"Arkusz7!$C$2","v":1.0000000000000001E-5}]

{"sheet":"PodsumowanieIVW","index":24,"n_rows":8,"n_cols":9,"rows_kept":8,"cut":false,"hidden":true,"merged":[[2,6,2,7],[2,8,2,15]]}
[]
[]
[null,null,null,null,null,null,"Wynik testu:",null,"ULP(95%)90% >= Limit: Konieczność zwiększenia częstotliwości pomiarów emisji do poprzedniego poziomu"]
[]
[null,"Lp.","Wynik pomiaru","ULP(95%)90%","ULP(95%)95%","Limit"]
[null,1,{"$f":"Arkusz7!R36","v":55},{"$f":"Arkusz7!$R$26","v":110.69343135039907},{"$f":"Arkusz7!$R$32","v":167.76098969416353},{"$f":"Arkusz7!$C$2","v":1.0000000000000001E-5}]
[null,2,{"$f":"Arkusz7!R37","v":51},{"$f":"Arkusz7!$R$26","v":110.69343135039907},{"$f":"Arkusz7!$R$32","v":167.76098969416353},{"$f":"Arkusz7!$C$2","v":1.0000000000000001E-5}]
[null,3,{"$f":"Arkusz7!R38","v":62},{"$f":"Arkusz7!$R$26","v":110.69343135039907},{"$f":"Arkusz7!$R$32","v":167.76098969416353},{"$f":"Arkusz7!$C$2","v":1.0000000000000001E-5}]

{"sheet":"PodsumowanieIIIW","index":25,"n_rows":8,"n_cols":9,"rows_kept":8,"cut":false,"hidden":true,"merged":[[2,6,2,7],[2,8,2,15]]}
[]
[]
[null,null,null,null,null,null,"Wynik testu:",null,"ULP(95%)90% >= Limit: Konieczność zwiększenia częstotliwości pomiarów emisji do poprzedniego poziomu"]
[]
[null,"Lp.","Wynik pomiaru","ULP(95%)90%","ULP(95%)95%","Limit"]
[null,1,{"$f":"Arkusz7!U36","v":150},{"$f":"Arkusz7!$U$26","v":271.13088115964746},{"$f":"Arkusz7!$U$32","v":391.4880016064115},{"$f":"Arkusz7!$C$2","v":1.0000000000000001E-5}]
[null,2,{"$f":"Arkusz7!U37","v":160},{"$f":"Arkusz7!$U$26","v":271.13088115964746},{"$f":"Arkusz7!$U$32","v":391.4880016064115},{"$f":"Arkusz7!$C$2","v":1.0000000000000001E-5}]
[null,3,{"$f":"Arkusz7!U38","v":155},{"$f":"Arkusz7!$U$26","v":271.13088115964746},{"$f":"Arkusz7!$U$32","v":391.4880016064115},{"$f":"Arkusz7!$C$2","v":1.0000000000000001E-5}]

{"sheet":"III poziom","index":26,"n_rows":6,"n_cols":3,"rows_kept":6,"cut":false,"hidden":true,"merged":[[0,1,0,6]]}
[null,"3 ostatnie wyniki z co najwyżej 36 ubiegłych miesięcy"]
[]
[null,"Lp","Wartość"]
[null,1,125]
[null,2,150]
[null,3,300]

{"sheet":"PodsumowanieIII","index":27,"n_rows":8,"n_cols":8,"rows_kept":8,"cut":false,"hidden":true,"merged":[[2,5,2,6],[2,7,2,17]]}
[]
[]
[null,null,null,null,null,"Wynik testu:",null,"ULP(95%)95% >= Limit: Brak możliwości zmniejszenia częstotliwości monitorowania emisji"]
[]
[null,"Lp.","Wynik pomiaru","ULP(95%)95%","Limit"]
[null,1,{"$f":"Arkusz7!U3","v":125},{"$f":"Arkusz7!U19","v":1103.1455144184126},{"$f":"Arkusz7!$C$2","v":1.0000000000000001E-5}]
[null,2,{"$f":"Arkusz7!U4","v":150},{"$f":"Arkusz7!U19","v":1103.1455144184126},{"$f":"Arkusz7!$C$2","v":1.0000000000000001E-5}]
[null,3,{"$f":"Arkusz7!U5","v":300},{"$f":"Arkusz7!$U$19","v":1103.1455144184126},{"$f":"Arkusz7!$C$2","v":1.0000000000000001E-5}]